Workbook

Sheet Indice
C2: Exportaciones de café colombiano
C4: Elaboración: Dirección de Investigaciones Económicas - FNC
C5: Fecha Actualización: Septiembre 2025
C7: Pestañas
C9: Exportaciones totales
C10: Pestaña 1 | D10: Volumen - Mensual
C11: Pestaña 2 | D11: Valor - Mensual
C12: Exportaciones según tipo
C13: Pestaña 3 | D13: Volumen - Anual
C14: Exportaciones según puertos de embarque
C15: Pestaña 4 | D15: Volumen - Anual
C16: Pestaña 5 | D16: Volumen y valor - Mensual
C17: Exportaciones según destino
C18: Pestaña 6 | D18: Volumen - Anual
C19: Pestaña 7 | D19: Volumen y Valor por Tipo - Mensual
C20: Exportaciones según exportador
C21: Pestaña 8 | D21: Volumen - Anual
C22: Pestaña 9 | D22: Valor - Mensual
C23: Pestaña 10 | D23: Destino - Mensual

Sheet 1. Total_Volumen
C2: Volumen de las exportaciones colombianas de café - mensual
C3: Miles de sacos de 60 Kg de café verde equivalente
C4: Información definitiva
C5: Fuente: Federación Nacional de Cafeteros
B6: Volver
D7: MES | E7: Total Exportaciones
D8: 1958-01-01 | E8: 337
D9: 1958-02-01 | E9: 450
D10: 1958-03-01 | E10: 383
D11: 1958-04-01 | E11: 334
D12: 1958-05-01 | E12: 331
D13: 1958-06-01 | E13: 340
D14: 1958-07-01 | E14: 485
D15: 1958-08-01 | E15: 483
D16: 1958-09-01 | E16: 754
D17: 1958-10-01 | E17: 534
D18: 1958-11-01 | E18: 562
D19: 1958-12-01 | E19: 448
D20: 1959-01-01 | E20: 443
D21: 1959-02-01 | E21: 483
D22: 1959-03-01 | E22: 384
D23: 1959-04-01 | E23: 490
D24: 1959-05-01 | E24: 598
D25: 1959-06-01 | E25: 502
D26: 1959-07-01 | E26: 557
D27: 1959-08-01 | E27: 604
D28: 1959-09-01 | E28: 828
D29: 1959-10-01 | E29: 428
D30: 1959-11-01 | E30: 600
D31: 1959-12-01 | E31: 497
D32: 1960-01-01 | E32: 439
D33: 1960-02-01 | E33: 540
D34: 1960-03-01 | E34: 381
D35: 1960-04-01 | E35: 387
D36: 1960-05-01 | E36: 412
D37: 1960-06-01 | E37: 348
D38: 1960-07-01 | E38: 369
D39: 1960-08-01 | E39: 447
D40: 1960-09-01 | E40: 823
D41: 1960-10-01 | E41: 525
D42: 1960-11-01 | E42: 609
D43: 1960-12-01 | E43: 658
D44: 1961-01-01 | E44: 463
D45: 1961-02-01 | E45: 528
D46: 1961-03-01 | E46: 245
D47: 1961-04-01 | E47: 527
D48: 1961-05-01 | E48: 444
D49: 1961-06-01 | E49: 505
D50: 1961-07-01 | E50: 437
D51: 1961-08-01 | E51: 473
D52: 1961-09-01 | E52: 624
D53: 1961-10-01 | E53: 412
D54: 1961-11-01 | E54: 495
D55: 1961-12-01 | E55: 497
D56: 1962-01-01 | E56: 373
D57: 1962-02-01 | E57: 460
D58: 1962-03-01 | E58: 367
D59: 1962-04-01 | E59: 415
D60: 1962-05-01 | E60: 496
D61: 1962-06-01 | E61: 647
D62: 1962-07-01 | E62: 531
D63: 1962-08-01 | E63: 713
D64: 1962-09-01 | E64: 1,119
D65: 1962-10-01 | E65: 411
D66: 1962-11-01 | E66: 495
D67: 1962-12-01 | E67: 534
D68: 1963-01-01 | E68: 310
D69: 1963-02-01 | E69: 253
D70: 1963-03-01 | E70: 472
D71: 1963-04-01 | E71: 560
D72: 1963-05-01 | E72: 471
D73: 1963-06-01 | E73: 470
D74: 1963-07-01 | E74: 557
D75: 1963-08-01 | E75: 752
D76: 1963-09-01 | E76: 770
D77: 1963-10-01 | E77: 882
D78: 1963-11-01 | E78: 449
D79: 1963-12-01 | E79: 187
D80: 1964-01-01 | E80: 554
D81: 1964-02-01 | E81: 614
D82: 1964-03-01 | E82: 444
D83: 1964-04-01 | E83: 760
D84: 1964-05-01 | E84: 579
D85: 1964-06-01 | E85: 196
D86: 1964-07-01 | E86: 429
D87: 1964-08-01 | E87: 401
D88: 1964-09-01 | E88: 815
D89: 1964-10-01 | E89: 434
D90: 1964-11-01 | E90: 665
D91: 1964-12-01 | E91: 520
D92: 1965-01-01 | E92: 275
D93: 1965-02-01 | E93: 465
D94: 1965-03-01 | E94: 490
D95: 1965-04-01 | E95: 440
D96: 1965-05-01 | E96: 482
D97: 1965-06-01 | E97: 519
D98: 1965-07-01 | E98: 527
D99: 1965-08-01 | E99: 705
D100: 1965-09-01 | E100: 221
D101: 1965-10-01 | E101: 547
D102: 1965-11-01 | E102: 557
D103: 1965-12-01 | E103: 424
D104: 1966-01-01 | E104: 487
D105: 1966-02-01 | E105: 571
D106: 1966-03-01 | E106: 273
D107: 1966-04-01 | E107: 658
D108: 1966-05-01 | E108: 481
D109: 1966-06-01 | E109: 344
D110: 1966-07-01 | E110: 473
D111: 1966-08-01 | E111: 532
D112: 1966-09-01 | E112: 517
D113: 1966-10-01 | E113: 173
D114: 1966-11-01 | E114: 434
D115: 1966-12-01 | E115: 621
D116: 1967-01-01 | E116: 323
D117: 1967-02-01 | E117: 524
D118: 1967-03-01 | E118: 458
D119: 1967-04-01 | E119: 396
D120: 1967-05-01 | E120: 511
D121: 1967-06-01 | E121: 539
D122: 1967-07-01 | E122: 506
D123: 1967-08-01 | E123: 631
D124: 1967-09-01 | E124: 517
D125: 1967-10-01 | E125: 509
D126: 1967-11-01 | E126: 493
D127: 1967-12-01 | E127: 688
D128: 1968-01-01 | E128: 556
D129: 1968-02-01 | E129: 585
D130: 1968-03-01 | E130: 380
D131: 1968-04-01 | E131: 570
D132: 1968-05-01 | E132: 499
D133: 1968-06-01 | E133: 601
D134: 1968-07-01 | E134: 618
D135: 1968-08-01 | E135: 665
D136: 1968-09-01 | E136: 431
D137: 1968-10-01 | E137: 468
D138: 1968-11-01 | E138: 589
D139: 1968-12-01 | E139: 624
D140: 1969-01-01 | E140: 239
D141: 1969-02-01 | E141: 477
D142: 1969-03-01 | E142: 657
D143: 1969-04-01 | E143: 404
D144: 1969-05-01 | E144: 648
D145: 1969-06-01 | E145: 705
D146: 1969-07-01 | E146: 383
D147: 1969-08-01 | E147: 479
D148: 1969-09-01 | E148: 860
D149: 1969-10-01 | E149: 375
D150: 1969-11-01 | E150: 555
D151: 1969-12-01 | E151: 696
D152: 1970-01-01 | E152: 534
D153: 1970-02-01 | E153: 620
D154: 1970-03-01 | E154: 788
D155: 1970-04-01 | E155: 463
D156: 1970-05-01 | E156: 579
D157: 1970-06-01 | E157: 687
D158: 1970-07-01 | E158: 316
D159: 1970-08-01 | E159: 434
D160: 1970-09-01 | E160: 828
D161: 1970-10-01 | E161: 248
D162: 1970-11-01 | E162: 443
D163: 1970-12-01 | E163: 570
D164: 1971-01-01 | E164: 397
D165: 1971-02-01 | E165: 429
D166: 1971-03-01 | E166: 654
D167: 1971-04-01 | E167: 386
D168: 1971-05-01 | E168: 515
D169: 1971-06-01 | E169: 744
D170: 1971-07-01 | E170: 346
D171: 1971-08-01 | E171: 845
D172: 1971-09-01 | E172: 754
D173: 1971-10-01 | E173: 342
D174: 1971-11-01 | E174: 520
D175: 1971-12-01 | E175: 637
D176: 1972-01-01 | E176: 604
D177: 1972-02-01 | E177: 637
D178: 1972-03-01 | E178: 389
D179: 1972-04-01 | E179: 487
D180: 1972-05-01 | E180: 529
D181: 1972-06-01 | E181: 525
D182: 1972-07-01 | E182: 524
D183: 1972-08-01 | E183: 549
D184: 1972-09-01 | E184: 743
D185: 1972-10-01 | E185: 286
D186: 1972-11-01 | E186: 521
D187: 1972-12-01 | E187: 733
D188: 1973-01-01 | E188: 538
D189: 1973-02-01 | E189: 437
D190: 1973-03-01 | E190: 544
D191: 1973-04-01 | E191: 559
D192: 1973-05-01 | E192: 526
D193: 1973-06-01 | E193: 526
D194: 1973-07-01 | E194: 340
D195: 1973-08-01 | E195: 443
D196: 1973-09-01 | E196: 801
D197: 1973-10-01 | E197: 383
D198: 1973-11-01 | E198: 595
D199: 1973-12-01 | E199: 1,074
D200: 1974-01-01 | E200: 533
D201: 1974-02-01 | E201: 768
... 619 more rows

Sheet 2. Total_Valor
C2: Valor de las exportaciones a todo destino- Total mensual
C3: Millones de dólares (USD)
C4: Información Preliminar
C5: Fuente: Federación Nacional de Cafeteros
B6: Volver
C7: Mes | D7: Valor Nominal*
C8: 1958-01-01 | D8: 29
C9: 1958-02-01 | D9: 39
C10: 1958-03-01 | D10: 33
C11: 1958-04-01 | D11: 25
C12: 1958-05-01 | D12: 24
C13: 1958-06-01 | D13: 25
C14: 1958-07-01 | D14: 35
C15: 1958-08-01 | D15: 34
C16: 1958-09-01 | D16: 47
C17: 1958-10-01 | D17: 36
C18: 1958-11-01 | D18: 38
C19: 1958-12-01 | D19: 29
C20: 1959-01-01 | D20: 28
C21: 1959-02-01 | D21: 31
C22: 1959-03-01 | D22: 25
C23: 1959-04-01 | D23: 31
C24: 1959-05-01 | D24: 38
C25: 1959-06-01 | D25: 31
C26: 1959-07-01 | D26: 34
C27: 1959-08-01 | D27: 37
C28: 1959-09-01 | D28: 51
C29: 1959-10-01 | D29: 25
C30: 1959-11-01 | D30: 36
C31: 1959-12-01 | D31: 30
C32: 1960-01-01 | D32: 26
C33: 1960-02-01 | D33: 32
C34: 1960-03-01 | D34: 22
C35: 1960-04-01 | D35: 23
C36: 1960-05-01 | D36: 25
C37: 1960-06-01 | D37: 21
C38: 1960-07-01 | D38: 22
C39: 1960-08-01 | D39: 27
C40: 1960-09-01 | D40: 49
C41: 1960-10-01 | D41: 31
C42: 1960-11-01 | D42: 36
C43: 1960-12-01 | D43: 39
C44: 1961-01-01 | D44: 28
C45: 1961-02-01 | D45: 31
C46: 1961-03-01 | D46: 15
C47: 1961-04-01 | D47: 31
C48: 1961-05-01 | D48: 27
C49: 1961-06-01 | D49: 30
C50: 1961-07-01 | D50: 26
C51: 1961-08-01 | D51: 28
C52: 1961-09-01 | D52: 37
C53: 1961-10-01 | D53: 25
C54: 1961-11-01 | D54: 28
C55: 1961-12-01 | D55: 28
C56: 1962-01-01 | D56: 21
C57: 1962-02-01 | D57: 26
C58: 1962-03-01 | D58: 21
C59: 1962-04-01 | D59: 22
C60: 1962-05-01 | D60: 26
C61: 1962-06-01 | D61: 34
C62: 1962-07-01 | D62: 28
C63: 1962-08-01 | D63: 37
C64: 1962-09-01 | D64: 59
C65: 1962-10-01 | D65: 22
C66: 1962-11-01 | D66: 26
C67: 1962-12-01 | D67: 28
C68: 1963-01-01 | D68: 16
C69: 1963-02-01 | D69: 13
C70: 1963-03-01 | D70: 24
C71: 1963-04-01 | D71: 28
C72: 1963-05-01 | D72: 24
C73: 1963-06-01 | D73: 24
C74: 1963-07-01 | D74: 28
C75: 1963-08-01 | D75: 38
C76: 1963-09-01 | D76: 39
C77: 1963-10-01 | D77: 45
C78: 1963-11-01 | D78: 23
C79: 1963-12-01 | D79: 9
C80: 1964-01-01 | D80: 29
C81: 1964-02-01 | D81: 35
C82: 1964-03-01 | D82: 24
C83: 1964-04-01 | D83: 48
C84: 1964-05-01 | D84: 35
C85: 1964-06-01 | D85: 12
C86: 1964-07-01 | D86: 26
C87: 1964-08-01 | D87: 24
C88: 1964-09-01 | D88: 51
C89: 1964-10-01 | D89: 28
C90: 1964-11-01 | D90: 42
C91: 1964-12-01 | D91: 33
C92: 1965-01-01 | D92: 17
C93: 1965-02-01 | D93: 29
C94: 1965-03-01 | D94: 30
C95: 1965-04-01 | D95: 27
C96: 1965-05-01 | D96: 29
C97: 1965-06-01 | D97: 31
C98: 1965-07-01 | D98: 32
C99: 1965-08-01 | D99: 42
C100: 1965-09-01 | D100: 13
C101: 1965-10-01 | D101: 34
C102: 1965-11-01 | D102: 34
C103: 1965-12-01 | D103: 26
C104: 1966-01-01 | D104: 30
C105: 1966-02-01 | D105: 35
C106: 1966-03-01 | D106: 17
C107: 1966-04-01 | D107: 41
C108: 1966-05-01 | D108: 30
C109: 1966-06-01 | D109: 21
C110: 1966-07-01 | D110: 29
C111: 1966-08-01 | D111: 33
C112: 1966-09-01 | D112: 32
C113: 1966-10-01 | D113: 11
C114: 1966-11-01 | D114: 25
C115: 1966-12-01 | D115: 35
C116: 1967-01-01 | D116: 18
C117: 1967-02-01 | D117: 28
C118: 1967-03-01 | D118: 25
C119: 1967-04-01 | D119: 21
C120: 1967-05-01 | D120: 27
C121: 1967-06-01 | D121: 28
C122: 1967-07-01 | D122: 27
C123: 1967-08-01 | D123: 33
C124: 1967-09-01 | D124: 27
C125: 1967-10-01 | D125: 26
C126: 1967-11-01 | D126: 25
C127: 1967-12-01 | D127: 36
C128: 1968-01-01 | D128: 29
C129: 1968-02-01 | D129: 31
C130: 1968-03-01 | D130: 20
C131: 1968-04-01 | D131: 30
C132: 1968-05-01 | D132: 26
C133: 1968-06-01 | D133: 32
C134: 1968-07-01 | D134: 33
C135: 1968-08-01 | D135: 36
C136: 1968-09-01 | D136: 23
C137: 1968-10-01 | D137: 25
C138: 1968-11-01 | D138: 32
C139: 1968-12-01 | D139: 34
C140: 1969-01-01 | D140: 13
C141: 1969-02-01 | D141: 25
C142: 1969-03-01 | D142: 35
C143: 1969-04-01 | D143: 21
C144: 1969-05-01 | D144: 33
C145: 1969-06-01 | D145: 36
C146: 1969-07-01 | D146: 19
C147: 1969-08-01 | D147: 24
C148: 1969-09-01 | D148: 44
C149: 1969-10-01 | D149: 21
C150: 1969-11-01 | D150: 33
C151: 1969-12-01 | D151: 42
C152: 1970-01-01 | D152: 37
C153: 1970-02-01 | D153: 45
C154: 1970-03-01 | D154: 57
C155: 1970-04-01 | D155: 34
C156: 1970-05-01 | D156: 42
C157: 1970-06-01 | D157: 50
C158: 1970-07-01 | D158: 23
C159: 1970-08-01 | D159: 32
C160: 1970-09-01 | D160: 60
C161: 1970-10-01 | D161: 18
C162: 1970-11-01 | D162: 32
C163: 1970-12-01 | D163: 38
C164: 1971-01-01 | D164: 26
C165: 1971-02-01 | D165: 28
C166: 1971-03-01 | D166: 41
C167: 1971-04-01 | D167: 24
C168: 1971-05-01 | D168: 31
C169: 1971-06-01 | D169: 45
C170: 1971-07-01 | D170: 21
C171: 1971-08-01 | D171: 50
C172: 1971-09-01 | D172: 45
C173: 1971-10-01 | D173: 20
C174: 1971-11-01 | D174: 31
C175: 1971-12-01 | D175: 38
C176: 1972-01-01 | D176: 37
C177: 1972-02-01 | D177: 39
C178: 1972-03-01 | D178: 24
C179: 1972-04-01 | D179: 31
C180: 1972-05-01 | D180: 33
C181: 1972-06-01 | D181: 33
C182: 1972-07-01 | D182: 34
C183: 1972-08-01 | D183: 36
C184: 1972-09-01 | D184: 49
C185: 1972-10-01 | D185: 21
C186: 1972-11-01 | D186: 38
C187: 1972-12-01 | D187: 56
C188: 1973-01-01 | D188: 42
C189: 1973-02-01 | D189: 35
C190: 1973-03-01 | D190: 46
C191: 1973-04-01 | D191: 49
C192: 1973-05-01 | D192: 48
C193: 1973-06-01 | D193: 49
C194: 1973-07-01 | D194: 32
C195: 1973-08-01 | D195: 41
C196: 1973-09-01 | D196: 74
C197: 1973-10-01 | D197: 34
C198: 1973-11-01 | D198: 53
C199: 1973-12-01 | D199: 96
C200: 1974-01-01 | D200: 48
C201: 1974-02-01 | D201: 69
... 619 more rows

Sheet 3. Tipo_Volumen
C2: Volumen de las exportaciones colombianas de café según tipo - anual
C3: Miles de sacos de 60 Kg de café verde equivalente
C4: Información definitiva
C5: Fuente: Federación Nacional de Cafeteros
B6: Volver
C8: Año | D8: Verde | E8: Verde descafeinado | F8: Tostado en grano | G8: Tostado y molido | H8: Extracto y soluble | I8: Producto de Colombia (verde + industrializado) | J8: Total
C9: 2000 | D9: 8,568 | E9: 6 | F9: 1 | G9: 4 | H9: 628 | J9: =SUM(D9:I9) -> 9,207
C10: 2001 | D10: 9,271 | E10: 71 | F10: 1 | G10: 5 | H10: 627 | J10: =SUM(D10:I10) -> 9,975
C11: 2002 | D11: 9,522 | E11: 137 | F11: 0 | G11: 5 | H11: 610 | J11: =SUM(D11:I11) -> 10,274
C12: 2003 | D12: 9,589 | E12: 96 | F12: 2 | G12: 10 | H12: 593 | J12: =SUM(D12:I12) -> 10,290
C13: 2004 | D13: 9,476 | E13: 124 | F13: 3 | G13: 13 | H13: 646 | J13: 10,262
C14: 2005 | D14: 10,111 | E14: 117 | F14: 2 | G14: 15 | H14: 627 | J14: 10,872
C15: 2006 | D15: 10,269 | E15: 37 | F15: 4 | G15: 12 | H15: 623 | J15: 10,945
C16: 2007 | D16: 10,665 | E16: 37 | F16: 3 | G16: 13 | H16: 583 | J16: 11,301
C17: 2008 | D17: 10,277 | E17: 77 | F17: 17 | G17: 18 | H17: 696 | J17: 11,085
C18: 2009 | D18: 7,144 | E18: 114 | F18: 38 | G18: 13 | H18: 584 | J18: 7,893
C19: 2010 | D19: 7,134 | E19: 28 | F19: 43 | G19: 15 | H19: 603 | J19: 7,822
C20: 2011 | D20: 7,108 | E20: 14 | F20: 55 | G20: 14 | H20: 543 | J20: 7,734
C21: 2012 | D21: 6,535 | E21: 22 | F21: 53 | G21: 31 | H21: 528 | J21: 7,169
C22: 2013 | D22: 9,041 | E22: 20 | F22: 48 | G22: 26 | H22: 535 | J22: 9,671
C23: 2014 | D23: 10,326 | E23: 14 | F23: 37 | G23: 48 | H23: 531 | J23: 10,957
C24: 2015 | D24: 11,970 | E24: 22 | F24: 42 | G24: 54 | H24: 602 | I24: 24 | J24: 12,714
C25: 2016 | D25: 11,034 | E25: 9 | F25: 40 | G25: 52 | H25: 708 | I25: 1,001 | J25: 12,845
C26: 2017 | D26: 11,385 | E26: 15 | F26: 33 | G26: 74 | H26: 756 | I26: 721 | J26: 12,983
C27: 2018 | D27: 11,316 | E27: 17 | F27: 38 | G27: 59 | H27: 779 | I27: 542 | J27: 12,751
C28: 2019 | D28: 11,970 | E28: 16 | F28: 41 | G28: 81 | H28: 809 | I28: 750 | J28: 13,668
C29: 2020 | D29: 10,684 | E29: 13 | F29: 44 | G29: 90 | H29: 880 | I29: 817 | J29: 12,527
C30: 2021 | D30: 10,664 | E30: 33 | F30: 62 | G30: 96 | H30: 787 | I30: 796 | J30: 12,439
C31: 2022 | D31: 9,495 | E31: 46 | F31: 66 | G31: 95 | H31: 799 | I31: 907 | J31: 11,408
C32: 2023 | D32: 9,012 | E32: 55 | F32: 49 | G32: 95 | H32: 654 | I32: 714 | J32: 10,579
C33: 2024 | D33: 10,233 | E33: 66 | F33: 54 | G33: 93 | H33: 685 | I33: 1,192 | J33: 12,323
C34: 2025
C35: 2026
C36: 2027
C37: 2028
C38: 2029

Sheet 4. Puerto_Volumen
C2: Volumen de las exportaciones colombianas de café según sitio de embarque - anual
C3: Miles de sacos de 60 Kg de café verde equivalente
C4: Información definitiva
C5: Fuente: Federación Nacional de Cafeteros
B6: Volver
C8: Puerto de Embarque | D8: 2000 | E8: 2001 | F8: 2002 | G8: 2003 | H8: 2004 | I8: 2005 | J8: 2006 | K8: 2007 | L8: 2008 | M8: 2009 | N8: 2010 | O8: 2011 | P8: 2012 | Q8: 2013 | R8: 2014 | S8: 2015 | T8: 2016 | U8: 2017 | V8: 2018 | W8: 2019 | X8: 2020 | Y8: 2021 | Z8: 2022 | AA8: 2023 | AB8: 2024
C9: Aerp. El Dorado | D9: 309 | E9: 770 | F9: 1,923 | G9: 1,442 | H9: 2,418 | I9: 2,111 | J9: 3,355 | K9: 3,804 | L9: 4,910 | M9: 2,693 | N9: 5,297 | O9: 3,789 | P9: 2,514 | Q9: 2,762 | R9: 3,153 | S9: 4,544 | T9: 11,500 | U9: 7,849 | V9: 7,129 | W9: 6,790 | X9: 2,817 | Y9: 1,551 | Z9: 177 | AA9: 7,379 | AB9: 31,406
C10: Aerp. José M.Cordoba | D10: 364 | E10: 2,762 | F10: 477 | G10: 1,193 | H10: 117 | J10: 161 | K10: 265 | L10: 1,324 | M10: 3,548 | N10: 8,869 | O10: 25,560 | P10: 9,931 | Q10: 7,902 | R10: 6,037 | S10: 4,757 | T10: 3,995 | U10: 3,183 | V10: 3,095 | W10: 4,567 | X10: 3,400 | AA10: 616 | AB10: 2,401
C11: Aerp. Alfonso Bonilla | D11: 55 | E11: 28 | F11: 6 | G11: 0 | H11: 197 | I11: 0 | J11: 261 | K11: 22 | L11: 665 | M11: 11 | N11: 53 | O11: 31 | P11: 31 | Q11: 73 | R11: 40 | S11: 15 | T11: 205 | U11: 56 | V11: 43 | W11: 95 | X11: 24 | Y11: 2 | AA11: 66 | AB11: 105
C12: Aerp. Matecaña | P12: 7 | U12: 36 | V12: 103 | W12: 94 | X12: 43 | AB12: 12
C13: Insp. Barranquilla | D13: 42,017 | E13: 63,635 | F13: 202,755 | G13: 107,631 | H13: 47,545 | I13: 28,659 | J13: 48,602 | K13: 13,503 | L13: 3,333 | M13: 4,693 | V13: 86 | W13: 725 | X13: 2,786 | Y13: 2,509 | Z13: 3,733 | AA13: 3,880 | AB13: 4,257
C14: Insp. Buenaventura | D14: 6,253,228 | E14: 6,286,221 | F14: 7,005,746 | G14: 7,434,680 | H14: 6,529,968 | I14: 6,287,256 | J14: 5,520,570 | K14: 5,004,591 | L14: 4,782,347 | M14: 4,554,759 | N14: 4,633,042 | O14: 4,021,025 | P14: 3,752,480 | Q14: 5,512,856 | R14: 6,490,979 | S14: 7,476,568 | T14: 7,172,616 | U14: 7,385,925 | V14: 7,829,483 | W14: 9,282,159 | X14: 8,816,304 | Y14: 7,323,698 | Z14: 6,858,784 | AA14: 6,653,920 | AB14: 7,835,882
C15: Insp. Cartagena | D15: 2,133,706 | E15: 3,138,088 | F15: 2,757,743 | G15: 2,318,074 | H15: 3,331,288 | I15: 4,355,794 | J15: 5,048,293 | K15: 5,934,382 | L15: 6,007,585 | M15: 3,162,685 | N15: 2,944,390 | O15: 3,466,137 | P15: 3,084,177 | Q15: 3,826,343 | R15: 3,901,527 | S15: 4,447,422 | T15: 4,454,007 | U15: 4,170,789 | V15: 4,003,015 | W15: 3,911,315 | X15: 3,099,162 | Y15: 4,236,453 | Z15: 3,625,868 | AA15: 3,347,181 | AB15: 3,535,062
C16: Insp. Santa Marta | D16: 753,081 | E16: 463,552 | F16: 307,727 | G16: 410,404 | H16: 296,130 | I16: 189,392 | J16: 280,578 | K16: 297,683 | L16: 244,855 | M16: 129,060 | N16: 193,293 | O16: 199,115 | P16: 294,785 | Q16: 300,769 | R16: 531,274 | S16: 748,213 | T16: 1,187,767 | U16: 1,391,617 | V16: 881,626 | W16: 434,744 | X16: 569,609 | Y16: 857,447 | Z16: 899,308 | AA16: 536,561 | AB16: 854,080
C17: Cucúta | D17: 6,840 | E17: 7,073 | F17: 4,991 | G17: 9,291 | H17: 8,549 | I17: 217 | J17: 4,368 | K17: 13,112 | L17: 11,900 | M17: 2,989 | N17: 14,365 | O17: 663 | P17: 4,406 | Q17: 5,074 | R17: 6,264 | S17: 4,097
C18: Ipiales | D18: 22,224 | E18: 18,473 | F18: 10,823 | G18: 3,221 | H18: 42,178 | I18: 7,849 | J18: 29,074 | K18: 28,145 | L18: 26,385 | M18: 33,444 | N18: 21,552 | O18: 15,966 | P18: 20,464 | Q18: 16,191 | R18: 15,931 | S18: 27,711 | T18: 14,297 | U18: 22,953 | V18: 25,508 | W18: 24,004 | X18: 27,653 | Y18: 16,772 | Z18: 20,366 | AA18: 29,568 | AB18: 59,242
C19: Paraguachón | D19: 494 | E19: 4,047 | F19: 3,537 | G19: 3,474 | H19: 4,397 | I19: 78 | J19: 9,918 | K19: 3,877 | L19: 139 | N19: 848 | O19: 1,256 | P19: 198 | Q19: 5 | R19: 943 | S19: 32 | T19: 77 | U19: 31 | W19: 26 | AA19: 115 | AB19: 335
C20: Urabá | D20: 15 | E20: 25 | G20: 16 | J20: 49 | K20: 1,284 | L20: 2,158 | P20: 5
C21: Pasto | R21: 676 | S21: 308 | AB21: 1
C22: Zonas Francas | T22: 369 | U22: 675 | V22: 1,252 | W22: 3,087 | X22: 4,238 | Y22: 357
C23: Medellín | W23: 26 | AA23: 3 | AB23: 40
C24: Barrancabermeja | X24: 1,400
C25: Manizales | Z25: 5 | AA25: 13 | AB25: 40
C26: Total Aeropuertos | D26: =SUM(D9:D12)+D23 -> 728 | E26: 3,560 | F26: 2,406 | G26: 2,635 | H26: 2,732 | I26: 2,111 | J26: 3,777 | K26: 4,091 | L26: 6,899 | M26: 6,252 | N26: 14,219 | O26: 29,380 | P26: 12,483 | Q26: 10,737 | R26: 9,230 | S26: 9,316 | T26: 15,700 | U26: 11,124 | V26: 10,370 | W26: 11,572 | X26: 6,284 | Y26: =SUM(Y9:Y12)+Y23 -> 1,553 | Z26: =SUM(Z9:Z12)+Z21+Z25 -> 182 | AA26: =SUM(AA9:AA12)+AA21+AA25+AA23 -> 8,077 | AB26: =SUM(AB9:AB12)+AB21+AB25+AB23 -> 34,005
C27: Total Puertos Marítimos | D27: =SUM(D13:D16) -> 9,182,032 | E27: 9,951,496 | F27: 10,273,971 | G27: 10,270,789 | H27: 10,204,931 | I27: 10,861,101 | J27: 10,898,043 | K27: 11,250,159 | L27: 11,038,120 | M27: 7,851,197 | N27: 7,770,725 | O27: 7,686,277 | P27: 7,131,442 | Q27: 9,639,968 | R27: 10,923,780 | S27: 12,672,203 | T27: 12,814,390 | U27: 12,948,331 | V27: 12,714,210 | W27: =SUM(W13:W16) -> 13,628,943 | X27: =SUM(X13:X16)+X24 -> 12,489,261 | Y27: =SUM(Y13:Y16)+Y24 -> 12,420,107 | Z27: =SUM(Z13:Z16)+Z24 -> 11,387,693 | AA27: =SUM(AA13:AA16)+AA24 -> 10,541,542 | AB27: =SUM(AB13:AB16)+AB24 -> 12,229,281
C28: Total Frontera terrestre y ZF | D28: =SUM(D17:D22) -> 29,573 | E28: 29,618 | F28: 19,351 | G28: 16,002 | H28: 55,124 | I28: 8,144 | J28: 43,409 | K28: 46,418 | L28: 40,582 | M28: 36,433 | N28: 36,765 | O28: 17,885 | P28: 25,073 | Q28: 21,270 | R28: 23,814 | S28: 32,148 | T28: 14,743 | U28: 23,659 | V28: 26,760 | W28: =SUM(W17:W22) -> 27,117 | X28: 31,891 | Y28: =SUM(Y17:Y22) -> 17,129 | Z28: =SUM(Z17:Z22) -> 20,366 | AA28: =SUM(AA17:AA22) -> 29,683 | AB28: =SUM(AB17:AB20) -> 59,577
C29: Total general | D29: 9,212,333 | E29: 9,984,674 | F29: 10,295,728 | G29: 10,289,426 | H29: 10,262,787 | I29: 10,871,356 | J29: 10,945,229 | K29: 11,300,668 | L29: 11,085,601 | M29: 7,893,882 | N29: 7,821,709 | O29: 7,733,542 | P29: 7,168,998 | Q29: 9,671,975 | R29: 10,956,824 | S29: 12,713,667 | T29: =SUM(T26:T28) -> 12,844,833 | U29: 12,983,114 | V29: 12,751,340 | W29: 13,667,632 | X29: 12,527,436 | Y29: 12,438,789 | Z29: =SUM(Z26:Z28) -> 11,408,241 | AA29: =SUM(AA26:AA28) -> 10,579,302 | AB29: =SUM(AB26:AB28) -> 12,322,863

Sheet 5. Puerto_Tipo_Vol_Val
C2: Volumen y valor de las exportaciones colombianas de café según tipo y puerto de embarque - mensual
C3: Miles de sacos de 60 Kg de café verde equivalente y dólares (USD)
C4: Información Preliminar
C5: Fuente: Federación Nacional de Cafeteros
B6: Volver
C8: Año | D8: Mes | E8: Puerto de embarque | F8: Tipo de café | G8: Sacos de 70 kg. equivalente real Exportados | H8: Sacos de 60 Kg. Exportados | I8: Valor provisional de la Exportación (USD) *
C9: 2017 | D9: 1 | E9: Aerp. El Dorado | F9: Café Verde | G9: 74 | H9: 84 | I9: 60,777
C10: 2017 | D10: 1 | E10: Aerp. El Dorado | F10: Extractos | G10: 27 | H10: 32 | I10: 25,210
C11: 2017 | D11: 1 | E11: Aerp. El Dorado | F11: Soluble | G11: 21 | H11: 26 | I11: 12,050
C12: 2017 | D12: 1 | E12: Aerp. El Dorado | F12: Tostados | G12: 257 | H12: 300 | I12: 173,077
C13: 2017 | D13: 1 | E13: Aerp. José M.Cordoba | F13: Café Verde | G13: 29 | H13: 33 | I13: 15,400
C14: 2017 | D14: 1 | E14: Aerp. José M.Cordoba | F14: Extractos | G14: 3 | H14: 4 | I14: 18,328
C15: 2017 | D15: 1 | E15: Aerp. José M.Cordoba | F15: Soluble | G15: 287 | H15: 336 | I15: 225,756
C16: 2017 | D16: 1 | E16: Aerp. Matecaña | F16: Tostados | G16: 4 | H16: 4 | I16: 3,517
C17: 2017 | D17: 1 | E17: Buenaventura | F17: Café Verde | G17: 582,005 | H17: 678,991 | I17: 132,591,517
C18: 2017 | D18: 1 | E18: Buenaventura | F18: Extractos | G18: 1,032 | H18: 1,203 | I18: 333,056
C19: 2017 | D19: 1 | E19: Buenaventura | F19: Soluble | G19: 21,836 | H19: 25,463 | I19: 6,163,560
C20: 2017 | D20: 1 | E20: Buenaventura | F20: Tostados | G20: 139 | H20: 164 | I20: 102,135
C21: 2017 | D21: 1 | E21: Cartagena | F21: Café Verde | G21: 243,460 | H21: 284,020 | I21: 61,850,818
C22: 2017 | D22: 1 | E22: Cartagena | F22: Extractos | G22: 1,498 | H22: 1,750 | I22: 414,653
C23: 2017 | D23: 1 | E23: Cartagena | F23: Soluble | G23: 22,587 | H23: 26,358 | I23: 9,123,361
C24: 2017 | D24: 1 | E24: Cartagena | F24: Tostados | G24: 2,432 | H24: 2,841 | I24: 1,010,828
C25: 2017 | D25: 1 | E25: Ipiales | F25: Soluble | G25: 1,030 | H25: 1,205 | I25: 512,481
C26: 2017 | D26: 1 | E26: Ipiales | F26: Tostados | G26: 94 | H26: 109 | I26: 64,166
C27: 2017 | D27: 1 | E27: Santa Marta | F27: Café Verde | G27: 98,304 | H27: 114,687 | I27: 26,342,697
C28: 2017 | D28: 1 | E28: Santa Marta | F28: Soluble | G28: 111 | H28: 130 | I28: 49,720
C29: 2017 | D29: 2 | E29: Aerp. El Dorado | F29: Café Verde | G29: 163 | H29: 192 | I29: 92,802
C30: 2017 | D30: 2 | E30: Aerp. El Dorado | F30: Soluble | G30: 193 | H30: 227 | I30: 78,876
C31: 2017 | D31: 2 | E31: Aerp. El Dorado | F31: Tostados | G31: 93 | H31: 102 | I31: 63,731
C32: 2017 | D32: 2 | E32: Aerp. José M.Cordoba | F32: Café Verde | G32: 35 | H32: 40 | I32: 16,138
C33: 2017 | D33: 2 | E33: Aerp. José M.Cordoba | F33: Extractos | G33: 8 | H33: 10 | I33: 57,485
C34: 2017 | D34: 2 | E34: Aerp. José M.Cordoba | F34: Soluble | G34: 357 | H34: 416 | I34: 340,091
C35: 2017 | D35: 2 | E35: Buenaventura | F35: Café Verde | G35: 553,548 | H35: 645,787 | I35: 125,415,447
C36: 2017 | D36: 2 | E36: Buenaventura | F36: Extractos | G36: 1,376 | H36: 1,604 | I36: 444,074
C37: 2017 | D37: 2 | E37: Buenaventura | F37: Soluble | G37: 19,545 | H37: 22,799 | I37: 5,391,985
C38: 2017 | D38: 2 | E38: Buenaventura | F38: Tostados | G38: 154 | H38: 180 | I38: 85,490
C39: 2017 | D39: 2 | E39: Cartagena | F39: Café Verde | G39: 275,558 | H39: 321,468 | I39: 70,376,964
C40: 2017 | D40: 2 | E40: Cartagena | F40: Extractos | G40: 1,489 | H40: 1,740 | I40: 415,844
C41: 2017 | D41: 2 | E41: Cartagena | F41: Soluble | G41: 29,417 | H41: 34,322 | I41: 10,439,340
C42: 2017 | D42: 2 | E42: Cartagena | F42: Tostados | G42: 7,170 | H42: 8,377 | I42: 3,163,563
C43: 2017 | D43: 2 | E43: Ipiales | F43: Soluble | G43: 1,404 | H43: 1,635 | I43: 544,951
C44: 2017 | D44: 2 | E44: Ipiales | F44: Tostados | G44: 100 | H44: 116 | I44: 25,778
C45: 2017 | D45: 2 | E45: Santa Marta | F45: Café Verde | G45: 122,763 | H45: 143,241 | I45: 32,764,124
C46: 2017 | D46: 3 | E46: Aerp. El Dorado | F46: Café Verde | G46: 134 | H46: 157 | I46: 72,575
C47: 2017 | D47: 3 | E47: Aerp. El Dorado | F47: Soluble | G47: 59 | H47: 69 | I47: 44,689
C48: 2017 | D48: 3 | E48: Aerp. El Dorado | F48: Tostados | G48: 96 | H48: 109 | I48: 69,414
C49: 2017 | D49: 3 | E49: Aerp. José M.Cordoba | F49: Café Verde | G49: 4 | H49: 4 | I49: 2,730
C50: 2017 | D50: 3 | E50: Aerp. José M.Cordoba | F50: Extractos | G50: 5 | H50: 6 | I50: 28,512
C51: 2017 | D51: 3 | E51: Aerp. José M.Cordoba | F51: Soluble | G51: 346 | H51: 405 | I51: 247,835
C52: 2017 | D52: 3 | E52: Aerp. José M.Cordoba | F52: Tostados | G52: 9 | H52: 12 | I52: 16,693
C53: 2017 | D53: 3 | E53: Buenaventura | F53: Café Verde | G53: 484,895 | H53: 565,663 | I53: 111,328,221
C54: 2017 | D54: 3 | E54: Buenaventura | F54: Extractos | G54: 1,720 | H54: 2,005 | I54: 555,093
C55: 2017 | D55: 3 | E55: Buenaventura | F55: Soluble | G55: 22,465 | H55: 26,207 | I55: 6,432,132
C56: 2017 | D56: 3 | E56: Buenaventura | F56: Tostados | G56: 497 | H56: 581 | I56: 360,988
C57: 2017 | D57: 3 | E57: Cartagena | F57: Café Verde | G57: 321,155 | H57: 374,659 | I57: 83,216,752
C58: 2017 | D58: 3 | E58: Cartagena | F58: Extractos | G58: 1,123 | H58: 1,312 | I58: 314,703
C59: 2017 | D59: 3 | E59: Cartagena | F59: Soluble | G59: 36,226 | H59: 42,277 | I59: 13,032,142
C60: 2017 | D60: 3 | E60: Cartagena | F60: Tostados | G60: 20,897 | H60: 24,404 | I60: 8,502,686
C61: 2017 | D61: 3 | E61: Ipiales | F61: Soluble | G61: 1,553 | H61: 1,810 | I61: 681,196
C62: 2017 | D62: 3 | E62: Ipiales | F62: Tostados | G62: 33 | H62: 39 | I62: 22,939
C63: 2017 | D63: 3 | E63: Santa Marta | F63: Café Verde | G63: 103,115 | H63: 120,306 | I63: 27,824,643
C64: 2017 | D64: 3 | E64: Zona Franca Palmasec | F64: Soluble | G64: 223 | H64: 260 | I64: 47,161
C65: 2017 | D65: 4 | E65: Aerp. El Dorado | F65: Café Verde | G65: 104 | H65: 121 | I65: 52,063
C66: 2017 | D66: 4 | E66: Aerp. El Dorado | F66: Extractos | G66: 4 | H66: 5 | I66: 19,381
C67: 2017 | D67: 4 | E67: Aerp. El Dorado | F67: Soluble | G67: 91 | H67: 107 | I67: 30,720
C68: 2017 | D68: 4 | E68: Aerp. El Dorado | F68: Tostados | G68: 136 | H68: 157 | I68: 95,630
C69: 2017 | D69: 4 | E69: Aerp. José M.Cordoba | F69: Extractos | G69: 8 | H69: 10 | I69: 57,485
C70: 2017 | D70: 4 | E70: Aerp. José M.Cordoba | F70: Soluble | G70: 153 | H70: 179 | I70: 141,008
C71: 2017 | D71: 4 | E71: Aerp.Alfonso Bonilla | F71: Café Verde | G71: 2 | H71: 2 | I71: 5,291
C72: 2017 | D72: 4 | E72: Aerp.Alfonso Bonilla | F72: Tostados | G72: 6 | H72: 7 | I72: 4,258
C73: 2017 | D73: 4 | E73: Buenaventura | F73: Café Verde | G73: 406,696 | H73: 474,444 | I73: 90,665,768
C74: 2017 | D74: 4 | E74: Buenaventura | F74: Extractos | G74: 1,376 | H74: 1,604 | I74: 444,074
C75: 2017 | D75: 4 | E75: Buenaventura | F75: Soluble | G75: 21,710 | H75: 25,326 | I75: 5,883,128
C76: 2017 | D76: 4 | E76: Buenaventura | F76: Tostados | G76: 439 | H76: 514 | I76: 263,432
C77: 2017 | D77: 4 | E77: Cartagena | F77: Café Verde | G77: 224,125 | H77: 261,481 | I77: 55,368,973
C78: 2017 | D78: 4 | E78: Cartagena | F78: Extractos | G78: 1,108 | H78: 1,294 | I78: 323,846
C79: 2017 | D79: 4 | E79: Cartagena | F79: Soluble | G79: 20,878 | H79: 24,367 | I79: 7,261,461
C80: 2017 | D80: 4 | E80: Cartagena | F80: Tostados | G80: 17,114 | H80: 19,980 | I80: 6,435,519
C81: 2017 | D81: 4 | E81: Ipiales | F81: Soluble | G81: 2,732 | H81: 3,187 | I81: 965,077
C82: 2017 | D82: 4 | E82: Ipiales | F82: Tostados | G82: 214 | H82: 249 | I82: 54,107
C83: 2017 | D83: 4 | E83: Paraguachón | F83: Soluble | G83: 26 | H83: 31 | I83: 35,357
C84: 2017 | D84: 4 | E84: Santa Marta | F84: Café Verde | G84: 72,009 | H84: 84,014 | I84: 18,973,123
C85: 2017 | D85: 4 | E85: Santa Marta | F85: Soluble | G85: 1,144 | H85: 1,334 | I85: 321,860
C86: 2017 | D86: 4 | E86: Zona Franca Palmasec | F86: Soluble | G86: 186 | H86: 216 | I86: 51,800
C87: 2017 | D87: 5 | E87: Aerp. El Dorado | F87: Café Verde | G87: 146 | H87: 169 | I87: 97,752
C88: 2017 | D88: 5 | E88: Aerp. El Dorado | F88: Soluble | G88: 206 | H88: 244 | I88: 89,227
C89: 2017 | D89: 5 | E89: Aerp. El Dorado | F89: Tostados | G89: 194 | H89: 229 | I89: 117,895
C90: 2017 | D90: 5 | E90: Aerp. José M.Cordoba | F90: Café Verde | G90: 32 | H90: 37 | I90: 13,251
C91: 2017 | D91: 5 | E91: Aerp. José M.Cordoba | F91: Extractos | G91: 4 | H91: 4 | I91: 22,176
C92: 2017 | D92: 5 | E92: Aerp. José M.Cordoba | F92: Soluble | G92: 200 | H92: 233 | I92: 180,805
C93: 2017 | D93: 5 | E93: Aerp. José M.Cordoba | F93: Tostados | G93: 3 | H93: 3 | I93: 999
C94: 2017 | D94: 5 | E94: Aerp.Alfonso Bonilla | F94: Café Verde | G94: 6 | H94: 7 | I94: 8,531
C95: 2017 | D95: 5 | E95: Buenaventura | F95: Café Verde | G95: 334,378 | H95: 390,089 | I95: 76,845,161
C96: 2017 | D96: 5 | E96: Buenaventura | F96: Extractos | G96: 1,032 | H96: 1,203 | I96: 333,056
C97: 2017 | D97: 5 | E97: Buenaventura | F97: Soluble | G97: 19,801 | H97: 23,093 | I97: 6,606,853
C98: 2017 | D98: 5 | E98: Buenaventura | F98: Tostados | G98: 326 | H98: 379 | I98: 168,338
C99: 2017 | D99: 5 | E99: Cartagena | F99: Café Verde | G99: 258,204 | H99: 301,230 | I99: 80,851,634
C100: 2017 | D100: 5 | E100: Cartagena | F100: Extractos | G100: 1,748 | H100: 2,041 | I100: 515,305
C101: 2017 | D101: 5 | E101: Cartagena | F101: Soluble | G101: 28,767 | H101: 33,563 | I101: 10,528,330
C102: 2017 | D102: 5 | E102: Cartagena | F102: Tostados | G102: 12,359 | H102: 14,439 | I102: 5,666,379
C103: 2017 | D103: 5 | E103: Ipiales | F103: Soluble | G103: 273 | H103: 319 | I103: 102,230
C104: 2017 | D104: 5 | E104: Santa Marta | F104: Café Verde | G104: 56,766 | H104: 66,235 | I104: 14,395,004
C105: 2017 | D105: 5 | E105: Santa Marta | F105: Soluble | G105: 305 | H105: 356 | I105: 143,235
C106: 2017 | D106: 6 | E106: Aerp. El Dorado | F106: Café Verde | G106: 74 | H106: 83 | I106: 43,692
C107: 2017 | D107: 6 | E107: Aerp. El Dorado | F107: Extractos | G107: 26 | H107: 30 | I107: 20,840
C108: 2017 | D108: 6 | E108: Aerp. El Dorado | F108: Soluble | G108: 215 | H108: 253 | I108: 119,094
C109: 2017 | D109: 6 | E109: Aerp. El Dorado | F109: Tostados | G109: 222 | H109: 257 | I109: 140,652
C110: 2017 | D110: 6 | E110: Aerp. José M.Cordoba | F110: Café Verde | G110: 8 | H110: 9 | I110: 3,360
C111: 2017 | D111: 6 | E111: Aerp. José M.Cordoba | F111: Extractos | G111: 10 | H111: 12 | I111: 66,467
C112: 2017 | D112: 6 | E112: Aerp. José M.Cordoba | F112: Soluble | G112: 113 | H112: 133 | I112: 98,346
C113: 2017 | D113: 6 | E113: Aerp. José M.Cordoba | F113: Tostados | G113: 6 | H113: 9 | I113: 20,186
C114: 2017 | D114: 6 | E114: Buenaventura | F114: Café Verde | G114: 236,785 | H114: 276,249 | I114: 54,172,563
C115: 2017 | D115: 6 | E115: Buenaventura | F115: Extractos | G115: 2,058 | H115: 2,400 | I115: 678,558
C116: 2017 | D116: 6 | E116: Buenaventura | F116: Soluble | G116: 9,820 | H116: 11,457 | I116: 3,355,611
C117: 2017 | D117: 6 | E117: Buenaventura | F117: Tostados | G117: 515 | H117: 600 | I117: 334,270
C118: 2017 | D118: 6 | E118: Cartagena | F118: Café Verde | G118: 372,501 | H118: 434,580 | I118: 91,053,204
C119: 2017 | D119: 6 | E119: Cartagena | F119: Extractos | G119: 2,860 | H119: 3,341 | I119: 906,125
C120: 2017 | D120: 6 | E120: Cartagena | F120: Soluble | G120: 39,187 | H120: 45,733 | I120: 12,784,052
C121: 2017 | D121: 6 | E121: Cartagena | F121: Tostados | G121: 8,169 | H121: 9,547 | I121: 3,594,606
C122: 2017 | D122: 6 | E122: Ipiales | F122: Soluble | G122: 1,620 | H122: 1,886 | I122: 961,771
C123: 2017 | D123: 6 | E123: Santa Marta | F123: Café Verde | G123: 136,049 | H123: 158,725 | I123: 32,930,820
C124: 2017 | D124: 6 | E124: Santa Marta | F124: Soluble | G124: 1,144 | H124: 1,334 | I124: 321,860
C125: 2017 | D125: 7 | E125: Aerp. El Dorado | F125: Café Verde | G125: 1,624 | H125: 1,899 | I125: 477,736
C126: 2017 | D126: 7 | E126: Aerp. El Dorado | F126: Extractos | G126: 3 | H126: 5 | I126: 13,409
C127: 2017 | D127: 7 | E127: Aerp. El Dorado | F127: Soluble | G127: 48 | H127: 55 | I127: 22,136
C128: 2017 | D128: 7 | E128: Aerp. El Dorado | F128: Tostados | G128: 179 | H128: 211 | I128: 128,029
C129: 2017 | D129: 7 | E129: Aerp. José M.Cordoba | F129: Extractos | G129: 6 | H129: 8 | I129: 40,565
C130: 2017 | D130: 7 | E130: Aerp. José M.Cordoba | F130: Soluble | G130: 171 | H130: 202 | I130: 156,531
C131: 2017 | D131: 7 | E131: Aerp. José M.Cordoba | F131: Tostados | G131: 15 | H131: 18 | I131: 8,748
C132: 2017 | D132: 7 | E132: Buenaventura | F132: Café Verde | G132: 485,114 | H132: 565,951 | I132: 111,033,146
C133: 2017 | D133: 7 | E133: Buenaventura | F133: Extractos | G133: 2,046 | H133: 2,388 | I133: 688,311
C134: 2017 | D134: 7 | E134: Buenaventura | F134: Soluble | G134: 21,637 | H134: 25,237 | I134: 6,248,605
C135: 2017 | D135: 7 | E135: Buenaventura | F135: Tostados | G135: 278 | H135: 323 | I135: 143,164
C136: 2017 | D136: 7 | E136: Cartagena | F136: Café Verde | G136: 217,124 | H136: 253,289 | I136: 53,496,014
C137: 2017 | D137: 7 | E137: Cartagena | F137: Extractos | G137: 2,903 | H137: 3,390 | I137: 918,557
C138: 2017 | D138: 7 | E138: Cartagena | F138: Soluble | G138: 26,743 | H138: 31,199 | I138: 8,973,712
C139: 2017 | D139: 7 | E139: Cartagena | F139: Tostados | G139: 7,339 | H139: 8,576 | I139: 3,573,041
C140: 2017 | D140: 7 | E140: Ipiales | F140: Soluble | G140: 1,073 | H140: 1,247 | I140: 676,660
C141: 2017 | D141: 7 | E141: Santa Marta | F141: Café Verde | G141: 91,190 | H141: 106,382 | I141: 22,389,210
C142: 2017 | D142: 7 | E142: Santa Marta | F142: Soluble | G142: 175 | H142: 204 | I142: 66,530
C143: 2017 | D143: 8 | E143: Aerp. El Dorado | F143: Café Verde | G143: 235 | H143: 279 | I143: 116,415
C144: 2017 | D144: 8 | E144: Aerp. El Dorado | F144: Extractos | G144: 3 | H144: 3 | I144: 20,765
C145: 2017 | D145: 8 | E145: Aerp. El Dorado | F145: Soluble | G145: 38 | H145: 44 | I145: 34,681
C146: 2017 | D146: 8 | E146: Aerp. El Dorado | F146: Tostados | G146: 277 | H146: 324 | I146: 174,535
C147: 2017 | D147: 8 | E147: Aerp. José M.Cordoba | F147: Extractos | G147: 11 | H147: 12 | I147: 71,856
C148: 2017 | D148: 8 | E148: Aerp. José M.Cordoba | F148: Soluble | G148: 276 | H148: 322 | I148: 206,959
C149: 2017 | D149: 8 | E149: Aerp. José M.Cordoba | F149: Tostados | G149: 4 | H149: 4 | I149: 11,222
C150: 2017 | D150: 8 | E150: Aerp.Alfonso Bonilla | F150: Café Verde | G150: 0 | H150: 0 | I150: 526
C151: 2017 | D151: 8 | E151: Aerp.Alfonso Bonilla | F151: Tostados | G151: 36 | H151: 40 | I151: 28,161
C152: 2017 | D152: 8 | E152: Buenaventura | F152: Café Verde | G152: 602,244 | H152: 702,628 | I152: 140,240,335
C153: 2017 | D153: 8 | E153: Buenaventura | F153: Extractos | G153: 1,705 | H153: 1,990 | I153: 573,593
C154: 2017 | D154: 8 | E154: Buenaventura | F154: Soluble | G154: 21,999 | H154: 25,673 | I154: 6,384,242
C155: 2017 | D155: 8 | E155: Buenaventura | F155: Tostados | G155: 228 | H155: 260 | I155: 174,996
C156: 2017 | D156: 8 | E156: Cartagena | F156: Café Verde | G156: 273,911 | H156: 319,568 | I156: 67,510,227
C157: 2017 | D157: 8 | E157: Cartagena | F157: Extractos | G157: 2,814 | H157: 3,287 | I157: 834,113
C158: 2017 | D158: 8 | E158: Cartagena | F158: Soluble | G158: 29,830 | H158: 34,812 | I158: 10,183,529
C159: 2017 | D159: 8 | E159: Cartagena | F159: Tostados | G159: 12,804 | H159: 14,967 | I159: 6,095,677
C160: 2017 | D160: 8 | E160: Ipiales | F160: Soluble | G160: 1,220 | H160: 1,420 | I160: 764,087
C161: 2017 | D161: 8 | E161: Medellin | F161: Extractos | G161: 5 | H161: 6 | I161: 35,928
C162: 2017 | D162: 8 | E162: Medellin | F162: Soluble | G162: 119 | H162: 138 | I162: 104,131
C163: 2017 | D163: 8 | E163: Santa Marta | F163: Café Verde | G163: 84,274 | H163: 98,310 | I163: 20,409,030
C164: 2017 | D164: 9 | E164: Aerp. El Dorado | F164: Café Verde | G164: 114 | H164: 134 | I164: 70,981
C165: 2017 | D165: 9 | E165: Aerp. El Dorado | F165: Extractos | G165: 43 | H165: 50 | I165: 44,298
C166: 2017 | D166: 9 | E166: Aerp. El Dorado | F166: Soluble | G166: 498 | H166: 579 | I166: 148,489
C167: 2017 | D167: 9 | E167: Aerp. El Dorado | F167: Tostados | G167: 156 | H167: 181 | I167: 136,803
C168: 2017 | D168: 9 | E168: Aerp. José M.Cordoba | F168: Soluble | G168: 46 | H168: 53 | I168: 40,731
C169: 2017 | D169: 9 | E169: Aerp. José M.Cordoba | F169: Tostados | G169: 11 | H169: 12 | I169: 25,229
C170: 2017 | D170: 9 | E170: Buenaventura | F170: Café Verde | G170: 546,887 | H170: 637,988 | I170: 130,538,595
C171: 2017 | D171: 9 | E171: Buenaventura | F171: Extractos | G171: 1,364 | H171: 1,592 | I171: 458,874
C172: 2017 | D172: 9 | E172: Buenaventura | F172: Soluble | G172: 18,320 | H172: 21,371 | I172: 5,785,916
C173: 2017 | D173: 9 | E173: Buenaventura | F173: Tostados | G173: 795 | H173: 930 | I173: 482,412
C174: 2017 | D174: 9 | E174: Cartagena | F174: Café Verde | G174: 254,038 | H174: 296,370 | I174: 63,191,153
C175: 2017 | D175: 9 | E175: Cartagena | F175: Extractos | G175: 2,382 | H175: 2,782 | I175: 785,207
C176: 2017 | D176: 9 | E176: Cartagena | F176: Soluble | G176: 29,851 | H176: 34,833 | I176: 10,613,544
C177: 2017 | D177: 9 | E177: Cartagena | F177: Tostados | G177: 11,829 | H177: 13,828 | I177: 5,328,262
C178: 2017 | D178: 9 | E178: Santa Marta | F178: Café Verde | G178: 87,139 | H178: 101,670 | I178: 21,862,500
C179: 2017 | D179: 9 | E179: Santa Marta | F179: Soluble | G179: 26 | H179: 30 | I179: 12,458
C180: 2017 | D180: 10 | E180: Aerp. El Dorado | F180: Café Verde | G180: 58 | H180: 71 | I180: 33,279
C181: 2017 | D181: 10 | E181: Aerp. El Dorado | F181: Extractos | G181: 40 | H181: 47 | I181: 24,373
C182: 2017 | D182: 10 | E182: Aerp. El Dorado | F182: Soluble | G182: 45 | H182: 52 | I182: 23,771
C183: 2017 | D183: 10 | E183: Aerp. El Dorado | F183: Tostados | G183: 17 | H183: 20 | I183: 12,674
C184: 2017 | D184: 10 | E184: Aerp. José M.Cordoba | F184: Extractos | G184: 23 | H184: 27 | I184: 158,083
C185: 2017 | D185: 10 | E185: Aerp. José M.Cordoba | F185: Soluble | G185: 180 | H185: 212 | I185: 111,914
C186: 2017 | D186: 10 | E186: Aerp. Matecaña | F186: Café Verde | G186: 19 | H186: 22 | I186: 11,550
C187: 2017 | D187: 10 | E187: Buenaventura | F187: Café Verde | G187: 616,892 | H187: 719,675 | I187: 150,887,791
C188: 2017 | D188: 10 | E188: Buenaventura | F188: Extractos | G188: 1,705 | H188: 1,990 | I188: 573,593
C189: 2017 | D189: 10 | E189: Buenaventura | F189: Soluble | G189: 21,641 | H189: 25,237 | I189: 6,999,997
C190: 2017 | D190: 10 | E190: Buenaventura | F190: Tostados | G190: 381 | H190: 444 | I190: 240,424
C191: 2017 | D191: 10 | E191: Cartagena | F191: Café Verde | G191: 206,927 | H191: 241,428 | I191: 51,680,132
C192: 2017 | D192: 10 | E192: Cartagena | F192: Extractos | G192: 3,045 | H192: 3,556 | I192: 983,479
C193: 2017 | D193: 10 | E193: Cartagena | F193: Soluble | G193: 23,582 | H193: 27,517 | I193: 8,175,982
C194: 2017 | D194: 10 | E194: Cartagena | F194: Tostados | G194: 5,532 | H194: 6,460 | I194: 2,473,418
C195: 2017 | D195: 10 | E195: Ipiales | F195: Soluble | G195: 3,011 | H195: 3,516 | I195: 1,434,621
C196: 2017 | D196: 10 | E196: Ipiales | F196: Tostados | G196: 377 | H196: 439 | I196: 142,937
C197: 2017 | D197: 10 | E197: Santa Marta | F197: Café Verde | G197: 79,293 | H197: 92,514 | I197: 19,740,536
C198: 2017 | D198: 10 | E198: Zona Franca Palmasec | F198: Soluble | G198: 171 | H198: 199 | I198: 47,840
C199: 2017 | D199: 11 | E199: Aerp. El Dorado | F199: Café Verde | G199: 90 | H199: 106 | I199: 64,308
C200: 2017 | D200: 11 | E200: Aerp. El Dorado | F200: Extractos | G200: 4 | H200: 4 | I200: 22,445
C201: 2017 | D201: 11 | E201: Aerp. El Dorado | F201: Soluble | G201: 140 | H201: 163 | I201: 54,610
C202: 2017 | D202: 11 | E202: Aerp. El Dorado | F202: Tostados | G202: 122 | H202: 140 | I202: 88,750
... 1822 more rows

Sheet 6. Destino_Vol
C2: Volumen de las exportaciones colombianas de café según destino - anual
C3: Miles de sacos de 60 Kg de café verde equivalente
C4: Fuente: Federación Nacional de Cafeteros
B5: Volver
C7: PAISES | D7: 2000 | E7: 2001 | F7: 2002 | G7: 2003 | H7: 2004 | I7: 2005 | J7: 2006 | K7: 2007 | L7: 2008 | M7: 2009 | N7: 2010 | O7: 2011 | P7: 2012 | Q7: 2013 | R7: 2014 | S7: 2015 | T7: 2016 | U7: 2017 | V7: 2018 | W7: 2019 | X7: 2020 | Y7: 2021 | Z7: 2022 | AA7: 2023 | AB7: 2024
C8: AMÉRICA
C9: Estados Unidos | D9: 2,956 | E9: 3,061 | F9: 3,441 | G9: 3,623 | H9: 3,560 | I9: 3,974 | J9: 3,793 | K9: 3,864 | L9: 4,163 | M9: 3,177 | N9: 3,073 | O9: 3,280 | P9: 2,917 | Q9: 4,229 | R9: 4,595 | S9: 5,298 | T9: 5,294 | U9: 5,703 | V9: 5,722 | W9: 5,895 | X9: 5,105 | Y9: 5,207 | Z9: 5,007 | AA9: 4,371 | AB9: 4,906
C10: Canadá | D10: 432 | E10: 531 | F10: 533 | G10: 513 | H10: 593 | I10: 645 | J10: 590 | K10: 555 | L10: 576 | M10: 484 | N10: 570 | O10: 531 | P10: 519 | Q10: 605 | R10: 734 | S10: 792 | T10: 837 | U10: 868 | V10: 929 | W10: 994 | X10: 876 | Y10: 951 | Z10: 821 | AA10: 680 | AB10: 935
C11: Argentina | D11: 28 | E11: 27 | F11: 7 | G11: 11 | H11: 10 | I11: 7 | J11: 7 | K11: 8 | L11: 8 | M11: 7 | N11: 5 | O11: 7 | P11: 7 | Q11: 5 | R11: 8 | S11: 8 | T11: 9 | U11: 19 | V11: 12 | W11: 14 | X11: 14 | Y11: 22 | Z11: 23 | AA11: 24 | AB11: 33
C12: EUROPA
C13: Alemania | D13: 1,727 | E13: 1,860 | F13: 1,767 | G13: 1,642 | H13: 1,383 | I13: 1,420 | J13: 1,457 | K13: 1,550 | L13: 1,136 | M13: 457 | N13: 335 | O13: 425 | P13: 469 | Q13: 737 | R13: 972 | S13: 1,109 | T13: 1,246 | U13: 1,025 | V13: 1,023 | W13: 1,196 | X13: 1,082 | Y13: 969 | Z13: 779 | AA13: 756 | AB13: 876
C14: Bélgica | D14: 485 | E14: 741 | F14: 486 | G14: 531 | H14: 543 | I14: 664 | J14: 615 | K14: 776 | L14: 710 | M14: 519 | N14: 571 | O14: 569 | P14: 532 | Q14: 669 | R14: 838 | S14: 919 | T14: 719 | U14: 617 | V14: 599 | W14: 660 | X14: 854 | Y14: 889 | Z14: 769 | AA14: 691 | AB14: 907
C15: Italia | D15: 228 | E15: 234 | F15: 257 | G15: 255 | H15: 285 | I15: 409 | J15: 392 | K15: 410 | L15: 392 | M15: 141 | N15: 108 | O15: 122 | P15: 111 | Q15: 165 | R15: 275 | S15: 340 | T15: 388 | U15: 349 | V15: 298 | W15: 345 | X15: 253 | Y15: 257 | Z15: 198 | AA15: 214 | AB15: 190
C16: Reino Unido | D16: 232 | E16: 238 | F16: 308 | G16: 296 | H16: 282 | I16: 368 | J16: 440 | K16: 483 | L16: 471 | M16: 323 | N16: 292 | O16: 432 | P16: 296 | Q16: 341 | R16: 315 | S16: 313 | T16: 358 | U16: 345 | V16: 284 | W16: 268 | X16: 258 | Y16: 293 | Z16: 243 | AA16: 176 | AB16: 207
C17: Suecia | D17: 223 | E17: 271 | F17: 265 | G17: 247 | H17: 266 | I17: 262 | J17: 296 | K17: 291 | L17: 266 | M17: 188 | N17: 130 | O17: 115 | P17: 118 | Q17: 154 | R17: 169 | S17: 166 | T17: 178 | U17: 133 | V17: 85 | W17: 90 | X17: 86 | Y17: 55 | Z17: 59 | AA17: 62 | AB17: 89
C18: Paises Bajos | D18: 238 | E18: 260 | F18: 214 | G18: 268 | H18: 208 | I18: 166 | J18: 218 | K18: 220 | L18: 131 | M18: 62 | N18: 52 | O18: 29 | P18: 46 | Q18: 73 | R18: 95 | S18: 127 | T18: 126 | U18: 108 | V18: 118 | W18: 149 | X18: 115 | Y18: 159 | Z18: 176 | AA18: 206 | AB18: 235
C19: España | D19: 228 | E19: 191 | F19: 256 | G19: 249 | H19: 217 | I19: 228 | J19: 277 | K19: 338 | L19: 282 | M19: 196 | N19: 209 | O19: 250 | P19: 238 | Q19: 228 | R19: 266 | S19: 307 | T19: 289 | U19: 304 | V19: 281 | W19: 321 | X19: 292 | Y19: 267 | Z19: 246 | AA19: 189 | AB19: 277
C20: Finlandia | D20: 110 | E20: 184 | F20: 180 | G20: 134 | H20: 187 | I20: 166 | J20: 229 | K20: 220 | L20: 224 | M20: 95 | N20: 117 | O20: 132 | P20: 192 | Q20: 164 | R20: 225 | S20: 287 | T20: 288 | U20: 252 | V20: 280 | W20: 300 | X20: 247 | Y20: 193 | Z20: 130 | AA20: 117 | AB20: 166
C21: Francia | D21: 306 | E21: 320 | F21: 242 | G21: 193 | H21: 159 | I21: 136 | J21: 159 | K21: 186 | L21: 158 | M21: 186 | N21: 158 | O21: 109 | P21: 116 | Q21: 172 | R21: 135 | S21: 109 | T21: 175 | U21: 215 | V21: 141 | W21: 144 | X21: 137 | Y21: 110 | Z21: 84 | AA21: 65 | AB21: 106
C22: Dinamarca | D22: 98 | E22: 86 | F22: 109 | G22: 105 | H22: 116 | I22: 74 | J22: 73 | K22: 59 | L22: 54 | M22: 21 | N22: 19 | O22: 21 | P22: 21 | Q22: 29 | R22: 38 | S22: 40 | T22: 41 | U22: 29 | V22: 25 | W22: 26 | X22: 17 | Y22: 22 | Z22: 14 | AA22: 25 | AB22: 25
C23: Polonia | D23: 85 | E23: 56 | F23: 32 | G23: 58 | H23: 20 | I23: 28 | J23: 65 | K23: 80 | L23: 80 | M23: 12 | N23: 10 | O23: 13 | P23: 14 | Q23: 15 | R23: 17 | S23: 19 | T23: 36 | U23: 32 | V23: 49 | W23: 41 | X23: 33 | Y23: 34 | Z23: 20 | AA23: 27 | AB23: 47
C24: Portugal | D24: 13 | E24: 19 | F24: 20 | G24: 21 | H24: 20 | I24: 20 | J24: 23 | K24: 27 | L24: 40 | M24: 10 | N24: 4 | O24: 7 | P24: 4 | Q24: 10 | R24: 11 | S24: 9 | T24: 10 | U24: 25 | V24: 23 | W24: 28 | X24: 20 | Y24: 12 | Z24: 12 | AA24: 20 | AB24: 37
C25: Austria | D25: 17 | E25: 18 | F25: 17 | G25: 15 | H25: 15 | I25: 4 | J25: 1 | K25: 1 | L25: 0 | M25: 0 | N25: 0 | O25: 0 | P25: 0 | Q25: 0 | R25: 0 | S25: 0 | T25: 0 | U25: 0 | V25: 0 | W25: 0 | X25: 0 | Y25: 0 | Z25: 0 | AA25: 0 | AB25: 0
C26: Grecia | D26: 13 | E26: 13 | F26: 18 | G26: 13 | H26: 17 | I26: 16 | J26: 15 | K26: 16 | L26: 22 | M26: 12 | N26: 5 | O26: 3 | P26: 7 | Q26: 12 | R26: 13 | S26: 16 | T26: 26 | U26: 20 | V26: 24 | W26: 34 | X26: 28 | Y26: 40 | Z26: 32 | AA26: 49 | AB26: 50
C27: Noruega | D27: 70 | E27: 103 | F27: 126 | G27: 136 | H27: 161 | I27: 130 | J27: 139 | K27: 153 | L27: 116 | M27: 101 | N27: 115 | O27: 89 | P27: 92 | Q27: 131 | R27: 138 | S27: 178 | T27: 160 | U27: 180 | V27: 137 | W27: 171 | X27: 186 | Y27: 160 | Z27: 172 | AA27: 125 | AB27: 105
C28: Suiza | D28: 19 | E28: 44 | F28: 35 | G28: 19 | H28: 12 | I28: 33 | J28: 5 | K28: 1 | L28: 0 | M28: 0 | N28: 0 | O28: 1 | P28: 7 | Q28: 2 | R28: 0 | S28: 4 | T28: 3 | U28: 0 | V28: 6 | W28: 1 | X28: 4 | Y28: 2 | Z28: 0 | AA28: 1 | AB28: 1
C29: OTROS PAISES
C30: Japón | D30: 1,268 | E30: 1,202 | F30: 1,459 | G30: 1,394 | H30: 1,618 | I30: 1,525 | J30: 1,513 | K30: 1,325 | L30: 1,415 | M30: 1,285 | N30: 1,401 | O30: 930 | P30: 783 | Q30: 1,100 | R30: 1,063 | S30: 1,330 | T30: 1,223 | U30: 1,238 | V30: 1,071 | W30: 1,107 | X30: 1,023 | Y30: 861 | Z30: 777 | AA30: 590 | AB30: 606
C31: Corea del Sur | D31: 122 | E31: 104 | F31: 101 | G31: 134 | H31: 149 | I31: 170 | J31: 167 | K31: 205 | L31: 233 | M31: 218 | N31: 267 | O31: 287 | P31: 215 | Q31: 244 | R31: 351 | S31: 346 | T31: 472 | U31: 454 | V31: 475 | W31: 493 | X31: 540 | Y31: 517 | Z31: 490 | AA31: 478 | AB31: 500
C32: Australia | D32: 24 | E32: 28 | F32: 32 | G32: 36 | H32: 39 | I32: 42 | J32: 48 | K32: 54 | L32: 58 | M32: 45 | N32: 55 | O32: 58 | P32: 64 | Q32: 92 | R32: 100 | S32: 131 | T32: 137 | U32: 182 | V32: 177 | W32: 184 | X32: 202 | Y32: 195 | Z32: 167 | AA32: 180 | AB32: 198
C33: Otros | D33: 285 | E33: 384 | F33: 370 | G33: 396 | H33: 405 | I33: 384 | J33: 423 | K33: 481 | L33: =L34-SUM(L30:L32,L28,L22:L27,L13:L21,L9:L11) -> 550 | M33: =M34-SUM(M30:M32,M28,M22:M27,M13:M21,M9:M11) -> 356 | N33: 326 | O33: 325 | P33: 404 | Q33: 497 | R33: 598 | S33: =S34-S9-S10-S11-S13-S14-S15-S16-S17-S18-S19-S20-S21-S22-S23-S24-S25-S26-S27-S28-S30-S31-S32 -> 864 | T33: =T34-T9-T10-T11-T13-T14-T15-T16-T17-T18-T19-T20-T21-T22-T23-T24-T25-T26-T27-T28-T30-T31-T32 -> 831 | U33: =U34-U9-U10-U11-U13-U14-U15-U16-U17-U18-U19-U20-U21-U22-U23-U24-U25-U26-U27-U28-U30-U31-U32 -> 887 | V33: 991 | W33: 1,205 | X33: =X34-SUM(X9:X11,X13:X28,X30:X32) -> 1,154 | Y33: =Y34-SUM(Y9:Y11,Y13:Y28,Y30:Y32) -> 1,225 | Z33: =Z34-SUM(Z9:Z11,Z13:Z28,Z30:Z32) -> 1,189 | AA33: =AA34-SUM(AA9:AA11,AA13:AA28,AA30:AA32) -> 1,534 | AB33: =AB34-SUM(AB9:AB11,AB13:AB28,AB30:AB32) -> 1,827
C34: TOTAL | D34: 9,206 | E34: 9,974 | F34: 10,274 | G34: 10,289 | H34: 10,263 | I34: 10,871 | J34: 10,945 | K34: 11,301 | L34: 11,085 | M34: 7,894 | N34: 7,822 | O34: 7,734 | P34: =SUM(P9:P33) -> 7,169 | Q34: 9,672 | R34: 10,957 | S34: 12,714 | T34: 12,845 | U34: 12,983 | V34: 12,751 | W34: 13,668 | X34: 12,527 | Y34: 12,439 | Z34: 11,408 | AA34: 10,579 | AB34: 12,323

Sheet 7. Destino_Tipo_Vol_Val
C2: Volumen y valor de las exportaciones colombianas de café según tipo y destino - mensual
C3: Miles de sacos de 60 Kg de café verde equivalente y valor provisional en USD
C4: Información Preliminar
C5: Fuente: Federación Nacional de Cafeteros
B6: Volver
C8: Año | D8: Mes | E8: País de destino | F8: Tipo de café | G8: Sacos de 70 kg. equivalente real Exportados | H8: Sacos de 60 Kg. Exportados | I8: Valor provisional de la Exportación (USD) *
C9: 2017 | D9: 1 | E9: Alemania | F9: Café Verde | G9: 64,522 | H9: 75,275 | I9: 15,035,993
C10: 2017 | D10: 1 | E10: Alemania | F10: Extractos | G10: 1 | H10: 1 | I10: 2,475
C11: 2017 | D11: 1 | E11: Alemania | F11: Soluble | G11: 9,132 | H11: 10,650 | I11: 2,499,024
C12: 2017 | D12: 1 | E12: Alemania | F12: Tostados | G12: 3 | H12: 3 | I12: 1,253
C13: 2017 | D13: 1 | E13: Argentina | F13: Café Verde | G13: 1,415 | H13: 1,650 | I13: 396,701
C14: 2017 | D14: 1 | E14: Aruba | F14: Tostados | G14: 9 | H14: 10 | I14: 4,481
C15: 2017 | D15: 1 | E15: Australia | F15: Café Verde | G15: 11,412 | H15: 13,312 | I15: 2,741,657
C16: 2017 | D16: 1 | E16: Australia | F16: Soluble | G16: 336 | H16: 392 | I16: 120,852
C17: 2017 | D17: 1 | E17: Bélgica | F17: Café Verde | G17: 43,886 | H17: 51,205 | I17: 10,156,353
C18: 2017 | D18: 1 | E18: Bélgica | F18: Soluble | G18: 498 | H18: 581 | I18: 143,120
C19: 2017 | D19: 1 | E19: Canadá | F19: Café Verde | G19: 43,831 | H19: 51,129 | I19: 11,030,062
C20: 2017 | D20: 1 | E20: Canadá | F20: Soluble | G20: 265 | H20: 309 | I20: 109,774
C21: 2017 | D21: 1 | E21: Chile | F21: Café Verde | G21: 30 | H21: 34 | I21: 11,266
C22: 2017 | D22: 1 | E22: Chile | F22: Soluble | G22: 724 | H22: 843 | I22: 455,629
C23: 2017 | D23: 1 | E23: Chile | F23: Tostados | G23: 134 | H23: 158 | I23: 98,514
C24: 2017 | D24: 1 | E24: China | F24: Café Verde | G24: 2,481 | H24: 2,892 | I24: 568,388
C25: 2017 | D25: 1 | E25: China | F25: Soluble | G25: 236 | H25: 276 | I25: 119,568
C26: 2017 | D26: 1 | E26: China | F26: Tostados | G26: 5 | H26: 6 | I26: 3,621
C27: 2017 | D27: 1 | E27: Colombia | F27: Soluble | G27: 233 | H27: 273 | I27: 130,372
C28: 2017 | D28: 1 | E28: Corea del Sur | F28: Café Verde | G28: 26,091 | H28: 30,434 | I28: 6,207,673
C29: 2017 | D29: 1 | E29: Corea del Sur | F29: Extractos | G29: 801 | H29: 936 | I29: 220,500
C30: 2017 | D30: 1 | E30: Costa Rica | F30: Soluble | G30: 23 | H30: 27 | I30: 8,303
C31: 2017 | D31: 1 | E31: Costa Rica | F31: Tostados | G31: 112 | H31: 132 | I31: 26,685
C32: 2017 | D32: 1 | E32: Dinamarca | F32: Café Verde | G32: 3,271 | H32: 3,813 | I32: 767,779
C33: 2017 | D33: 1 | E33: Dinamarca | F33: Soluble | G33: 111 | H33: 130 | I33: 49,720
C34: 2017 | D34: 1 | E34: E.A.U. | F34: Café Verde | G34: 1,111 | H34: 1,296 | I34: 261,191
C35: 2017 | D35: 1 | E35: Ecuador | F35: Extractos | G35: 28 | H35: 33 | I35: 32,899
C36: 2017 | D36: 1 | E36: Ecuador | F36: Soluble | G36: 1,042 | H36: 1,218 | I36: 425,061
C37: 2017 | D37: 1 | E37: Ecuador | F37: Tostados | G37: 98 | H37: 113 | I37: 67,451
C38: 2017 | D38: 1 | E38: EE.UU. | F38: Café Verde | G38: 436,817 | H38: 509,603 | I38: 103,598,590
C39: 2017 | D39: 1 | E39: EE.UU. | F39: Extractos | G39: 11 | H39: 13 | I39: 31
C40: 2017 | D40: 1 | E40: EE.UU. | F40: Soluble | G40: 16,182 | H40: 18,875 | I40: 6,558,366
C41: 2017 | D41: 1 | E41: EE.UU. | F41: Tostados | G41: 1,871 | H41: 2,187 | I41: 873,310
C42: 2017 | D42: 1 | E42: El Salvador | F42: Tostados | G42: 68 | H42: 79 | I42: 46,187
C43: 2017 | D43: 1 | E43: Eslovenia | F43: Café Verde | G43: 1,098 | H43: 1,281 | I43: 264,352
C44: 2017 | D44: 1 | E44: España | F44: Café Verde | G44: 20,400 | H44: 23,799 | I44: 5,552,973
C45: 2017 | D45: 1 | E45: Federación Rusa | F45: Café Verde | G45: 7,716 | H45: 9,004 | I45: 1,925,896
C46: 2017 | D46: 1 | E46: Federación Rusa | F46: Soluble | G46: 1,144 | H46: 1,334 | I46: 315,700
C47: 2017 | D47: 1 | E47: Finlandia | F47: Café Verde | G47: 14,483 | H47: 16,893 | I47: 4,163,435
C48: 2017 | D48: 1 | E48: Finlandia | F48: Soluble | G48: 572 | H48: 667 | I48: 160,160
C49: 2017 | D49: 1 | E49: Francia | F49: Café Verde | G49: 11,654 | H49: 13,594 | I49: 2,993,290
C50: 2017 | D50: 1 | E50: Francia | F50: Soluble | G50: 950 | H50: 1,109 | I50: 300,000
C51: 2017 | D51: 1 | E51: Grecia | F51: Café Verde | G51: 1,380 | H51: 1,614 | I51: 349,686
C52: 2017 | D52: 1 | E52: Hong Kong | F52: Café Verde | G52: 1,342 | H52: 1,566 | I52: 303,228
C53: 2017 | D53: 1 | E53: India | F53: Café Verde | G53: 275 | H53: 320 | I53: 64,533
C54: 2017 | D54: 1 | E54: Irán | F54: Café Verde | G54: 274 | H54: 319 | I54: 71,618
C55: 2017 | D55: 1 | E55: Irlanda | F55: Café Verde | G55: 833 | H55: 972 | I55: 226,141
C56: 2017 | D56: 1 | E56: Israel | F56: Café Verde | G56: 3,848 | H56: 4,486 | I56: 974,350
C57: 2017 | D57: 1 | E57: Italia | F57: Café Verde | G57: 27,624 | H57: 32,224 | I57: 6,955,321
C58: 2017 | D58: 1 | E58: Jamaica | F58: Soluble | G58: 5 | H58: 5 | I58: 3,450
C59: 2017 | D59: 1 | E59: Japón | F59: Café Verde | G59: 119,792 | H59: 139,752 | I59: 29,499,729
C60: 2017 | D60: 1 | E60: Japón | F60: Extractos | G60: 1,718 | H60: 2,004 | I60: 527,178
C61: 2017 | D61: 1 | E61: Japón | F61: Soluble | G61: 1,928 | H61: 2,249 | I61: 787,633
C62: 2017 | D62: 1 | E62: Japón | F62: Tostados | G62: 2 | H62: 3 | I62: 4,900
C63: 2017 | D63: 1 | E63: Jordania | F63: Café Verde | G63: 275 | H63: 321 | I63: 50,000
C64: 2017 | D64: 1 | E64: Kuwait | F64: Soluble | G64: 0 | H64: 1 | I64: 827
C65: 2017 | D65: 1 | E65: Kuwait | F65: Tostados | G65: 5 | H65: 6 | I65: 5,124
C66: 2017 | D66: 1 | E66: Líbano | F66: Café Verde | G66: 285 | H66: 332 | I66: 50,000
C67: 2017 | D67: 1 | E67: Malasia | F67: Café Verde | G67: 6,351 | H67: 7,406 | I67: 1,523,782
C68: 2017 | D68: 1 | E68: Malasia | F68: Soluble | G68: 395 | H68: 463 | I68: 138,891
C69: 2017 | D69: 1 | E69: Marruecos | F69: Café Verde | G69: 549 | H69: 641 | I69: 114,874
C70: 2017 | D70: 1 | E70: México | F70: Café Verde | G70: 4,916 | H70: 5,738 | I70: 1,016,131
C71: 2017 | D71: 1 | E71: México | F71: Soluble | G71: 5,100 | H71: 5,951 | I71: 1,506,606
C72: 2017 | D72: 1 | E72: México | F72: Tostados | G72: 53 | H72: 61 | I72: 32,474
C73: 2017 | D73: 1 | E73: Noruega | F73: Café Verde | G73: 12,227 | H73: 14,269 | I73: 3,394,908
C74: 2017 | D74: 1 | E74: Nueva Zelanda | F74: Café Verde | G74: 2,252 | H74: 2,629 | I74: 556,191
C75: 2017 | D75: 1 | E75: Países Bajos | F75: Café Verde | G75: 8,870 | H75: 10,347 | I75: 1,687,449
C76: 2017 | D76: 1 | E76: Países Bajos | F76: Soluble | G76: 505 | H76: 589 | I76: 463,963
C77: 2017 | D77: 1 | E77: Panamá | F77: Café Verde | G77: 275 | H77: 321 | I77: 50,000
C78: 2017 | D78: 1 | E78: Panamá | F78: Soluble | G78: 142 | H78: 167 | I78: 70,245
C79: 2017 | D79: 1 | E79: Panamá | F79: Tostados | G79: 455 | H79: 531 | I79: 110,387
C80: 2017 | D80: 1 | E80: Paraguay | F80: Tostados | G80: 6 | H80: 7 | I80: 4,707
C81: 2017 | D81: 1 | E81: Perú | F81: Soluble | G81: 859 | H81: 1,002 | I81: 247,856
C82: 2017 | D82: 1 | E82: Perú | F82: Tostados | G82: 72 | H82: 84 | I82: 48,671
C83: 2017 | D83: 1 | E83: Polonia | F83: Café Verde | G83: 1,099 | H83: 1,283 | I83: 264,630
C84: 2017 | D84: 1 | E84: Polonia | F84: Soluble | G84: 4,253 | H84: 4,962 | I84: 1,009,847
C85: 2017 | D85: 1 | E85: Portugal | F85: Café Verde | G85: 1,382 | H85: 1,614 | I85: 235,016
C86: 2017 | D86: 1 | E86: Puerto Rico | F86: Soluble | G86: 15 | H86: 19 | I86: 8,467
C87: 2017 | D87: 1 | E87: Reino Unido | F87: Café Verde | G87: 16,225 | H87: 18,933 | I87: 2,536,707
C88: 2017 | D88: 1 | E88: Reino Unido | F88: Soluble | G88: 1,007 | H88: 1,174 | I88: 328,910
C89: 2017 | D89: 1 | E89: Rep.Dominicana | F89: Café Verde | G89: 2,850 | H89: 3,327 | I89: 435,534
C90: 2017 | D90: 1 | E90: Rumanía | F90: Café Verde | G90: 3,676 | H90: 4,288 | I90: 895,918
C91: 2017 | D91: 1 | E91: Singapur | F91: Café Verde | G91: 284 | H91: 332 | I91: 76,089
C92: 2017 | D92: 1 | E92: Siria | F92: Café Verde | G92: 1,100 | H92: 1,281 | I92: 227,375
C93: 2017 | D93: 1 | E93: Sudáfrica | F93: Café Verde | G93: 835 | H93: 975 | I93: 185,751
C94: 2017 | D94: 1 | E94: Suecia | F94: Café Verde | G94: 6,585 | H94: 7,683 | I94: 1,635,371
C95: 2017 | D95: 1 | E95: Suecia | F95: Soluble | G95: 143 | H95: 167 | I95: 79,151
C96: 2017 | D96: 1 | E96: Surinam | F96: Soluble | G96: 45 | H96: 53 | I96: 17,537
C97: 2017 | D97: 1 | E97: Surinam | F97: Tostados | G97: 6 | H97: 7 | I97: 1,531
C98: 2017 | D98: 1 | E98: Tailandia | F98: Soluble | G98: 9 | H98: 11 | I98: 6,750
C99: 2017 | D99: 1 | E99: Taiwan | F99: Café Verde | G99: 5,497 | H99: 6,414 | I99: 1,143,781
C100: 2017 | D100: 1 | E100: Taiwan | F100: Extractos | G100: 1 | H100: 2 | I100: 8,164
C101: 2017 | D101: 1 | E101: Turquía | F101: Café Verde | G101: 1,098 | H101: 1,282 | I101: 246,374
C102: 2017 | D102: 1 | E102: Ucrania | F102: Café Verde | G102: 559 | H102: 652 | I102: 120,000
C103: 2017 | D103: 1 | E103: Uruguay | F103: Soluble | G103: 18 | H103: 21 | I103: 21,148
C104: 2017 | D104: 1 | E104: Uruguay | F104: Tostados | G104: 27 | H104: 31 | I104: 24,425
C105: 2017 | D105: 1 | E105: Venezuela | F105: Café Verde | G105: 1,096 | H105: 1,280 | I105: 295,124
C106: 2017 | D106: 2 | E106: Alemania | F106: Café Verde | G106: 68,185 | H106: 79,543 | I106: 15,038,619
C107: 2017 | D107: 2 | E107: Alemania | F107: Soluble | G107: 7,450 | H107: 8,689 | I107: 1,840,610
C108: 2017 | D108: 2 | E108: Antillas hol. | F108: Soluble | G108: 152 | H108: 178 | I108: 54,347
C109: 2017 | D109: 2 | E109: Antillas hol. | F109: Tostados | G109: 21 | H109: 24 | I109: 7,170
C110: 2017 | D110: 2 | E110: Argentina | F110: Café Verde | G110: 1,970 | H110: 2,299 | I110: 433,798
C111: 2017 | D111: 2 | E111: Aruba | F111: Soluble | G111: 152 | H111: 178 | I111: 50,515
C112: 2017 | D112: 2 | E112: Aruba | F112: Tostados | G112: 34 | H112: 40 | I112: 14,422
C113: 2017 | D113: 2 | E113: Australia | F113: Café Verde | G113: 9,338 | H113: 10,889 | I113: 2,378,260
C114: 2017 | D114: 2 | E114: Australia | F114: Soluble | G114: 221 | H114: 258 | I114: 127,075
C115: 2017 | D115: 2 | E115: Barbados | F115: Soluble | G115: 18 | H115: 20 | I115: 13,209
C116: 2017 | D116: 2 | E116: Bélgica | F116: Café Verde | G116: 58,625 | H116: 68,393 | I116: 13,850,399
C117: 2017 | D117: 2 | E117: Bélgica | F117: Soluble | G117: 820 | H117: 955 | I117: 239,246
C118: 2017 | D118: 2 | E118: Brasil | F118: Tostados | G118: 43 | H118: 50 | I118: 48,168
C119: 2017 | D119: 2 | E119: Canadá | F119: Café Verde | G119: 57,718 | H119: 67,329 | I119: 14,385,678
C120: 2017 | D120: 2 | E120: Canadá | F120: Tostados | G120: 11 | H120: 11 | I120: 5,941
C121: 2017 | D121: 2 | E121: Chile | F121: Café Verde | G121: 167 | H121: 197 | I121: 53,103
C122: 2017 | D122: 2 | E122: Chile | F122: Soluble | G122: 2,358 | H122: 2,752 | I122: 1,151,814
C123: 2017 | D123: 2 | E123: Chile | F123: Tostados | G123: 111 | H123: 129 | I123: 52,796
C124: 2017 | D124: 2 | E124: China | F124: Café Verde | G124: 2,308 | H124: 2,697 | I124: 514,273
C125: 2017 | D125: 2 | E125: China | F125: Soluble | G125: 297 | H125: 346 | I125: 114,490
C126: 2017 | D126: 2 | E126: China | F126: Tostados | G126: 48 | H126: 56 | I126: 23,985
C127: 2017 | D127: 2 | E127: Colombia | F127: Soluble | G127: 496 | H127: 576 | I127: 280,049
C128: 2017 | D128: 2 | E128: Colombia | F128: Tostados | G128: 21 | H128: 23 | I128: 19,980
C129: 2017 | D129: 2 | E129: Corea del Sur | F129: Café Verde | G129: 23,158 | H129: 27,018 | I129: 5,567,312
C130: 2017 | D130: 2 | E130: Corea del Sur | F130: Extractos | G130: 809 | H130: 946 | I130: 277,985
C131: 2017 | D131: 2 | E131: Corea del Sur | F131: Soluble | G131: 563 | H131: 658 | I131: 281,130
C132: 2017 | D132: 2 | E132: Costa Rica | F132: Soluble | G132: 3 | H132: 4 | I132: 1,666
C133: 2017 | D133: 2 | E133: Costa Rica | F133: Tostados | G133: 204 | H133: 238 | I133: 47,400
C134: 2017 | D134: 2 | E134: Cuba | F134: Soluble | G134: 44 | H134: 51 | I134: 11,583
C135: 2017 | D135: 2 | E135: Dinamarca | F135: Café Verde | G135: 898 | H135: 1,047 | I135: 186,084
C136: 2017 | D136: 2 | E136: Dinamarca | F136: Soluble | G136: 777 | H136: 910 | I136: 304,911
C137: 2017 | D137: 2 | E137: E.A.U. | F137: Café Verde | G137: 670 | H137: 781 | I137: 184,164
C138: 2017 | D138: 2 | E138: E.A.U. | F138: Soluble | G138: 360 | H138: 420 | I138: 65,240
C139: 2017 | D139: 2 | E139: Ecuador | F139: Soluble | G139: 908 | H139: 1,059 | I139: 264,902
C140: 2017 | D140: 2 | E140: Ecuador | F140: Tostados | G140: 100 | H140: 116 | I140: 25,778
C141: 2017 | D141: 2 | E141: EE.UU. | F141: Café Verde | G141: 433,155 | H141: 505,359 | I141: 104,557,450
C142: 2017 | D142: 2 | E142: EE.UU. | F142: Soluble | G142: 18,307 | H142: 21,358 | I142: 6,017,209
C143: 2017 | D143: 2 | E143: EE.UU. | F143: Tostados | G143: 6,272 | H143: 7,327 | I143: 2,810,724
C144: 2017 | D144: 2 | E144: Egipto | F144: Café Verde | G144: 826 | H144: 964 | I144: 223,183
C145: 2017 | D145: 2 | E145: Eslovenia | F145: Café Verde | G145: 1,099 | H145: 1,281 | I145: 260,392
C146: 2017 | D146: 2 | E146: España | F146: Café Verde | G146: 25,732 | H146: 30,013 | I146: 7,014,001
C147: 2017 | D147: 2 | E147: España | F147: Soluble | G147: 535 | H147: 624 | I147: 183,780
C148: 2017 | D148: 2 | E148: España | F148: Tostados | G148: 2 | H148: 2 | I148: 1,386
C149: 2017 | D149: 2 | E149: Federación Rusa | F149: Café Verde | G149: 4,111 | H149: 4,798 | I149: 865,334
C150: 2017 | D150: 2 | E150: Federación Rusa | F150: Soluble | G150: 572 | H150: 667 | I150: 146,300
C151: 2017 | D151: 2 | E151: Finlandia | F151: Café Verde | G151: 7,148 | H151: 8,340 | I151: 1,862,319
C152: 2017 | D152: 2 | E152: Finlandia | F152: Soluble | G152: 1,716 | H152: 2,001 | I152: 485,870
C153: 2017 | D153: 2 | E153: Francia | F153: Café Verde | G153: 14,362 | H153: 16,755 | I153: 3,058,503
C154: 2017 | D154: 2 | E154: Francia | F154: Soluble | G154: 1,443 | H154: 1,683 | I154: 367,378
C155: 2017 | D155: 2 | E155: Georgia | F155: Café Verde | G155: 274 | H155: 319 | I155: 72,377
C156: 2017 | D156: 2 | E156: Grecia | F156: Café Verde | G156: 559 | H156: 652 | I156: 129,744
C157: 2017 | D157: 2 | E157: Honduras | F157: Soluble | G157: 47 | H157: 55 | I157: 115,152
C158: 2017 | D158: 2 | E158: Hong Kong | F158: Café Verde | G158: 275 | H158: 320 | I158: 50,000
C159: 2017 | D159: 2 | E159: Irlanda | F159: Café Verde | G159: 824 | H159: 960 | I159: 208,798
C160: 2017 | D160: 2 | E160: Israel | F160: Café Verde | G160: 5,242 | H160: 6,119 | I160: 1,240,134
C161: 2017 | D161: 2 | E161: Italia | F161: Café Verde | G161: 33,010 | H161: 38,503 | I161: 8,425,400
C162: 2017 | D162: 2 | E162: Italia | F162: Soluble | G162: 204 | H162: 238 | I162: 63,525
C163: 2017 | D163: 2 | E163: Jamaica | F163: Café Verde | G163: 799 | H163: 933 | I163: 180,493
C164: 2017 | D164: 2 | E164: Japón | F164: Café Verde | G164: 113,342 | H164: 132,236 | I164: 28,466,412
C165: 2017 | D165: 2 | E165: Japón | F165: Extractos | G165: 2,064 | H165: 2,408 | I165: 639,418
C166: 2017 | D166: 2 | E166: Japón | F166: Soluble | G166: 1,203 | H166: 1,403 | I166: 502,929
C167: 2017 | D167: 2 | E167: Jordania | F167: Café Verde | G167: 1,687 | H167: 1,970 | I167: 396,647
C168: 2017 | D168: 2 | E168: Líbano | F168: Café Verde | G168: 569 | H168: 664 | I168: 100,000
C169: 2017 | D169: 2 | E169: Macao | F169: Café Verde | G169: 274 | H169: 319 | I169: 50,000
C170: 2017 | D170: 2 | E170: Malasia | F170: Café Verde | G170: 13,023 | H170: 15,190 | I170: 3,194,652
C171: 2017 | D171: 2 | E171: Malasia | F171: Soluble | G171: 939 | H171: 1,095 | I171: 373,174
C172: 2017 | D172: 2 | E172: Malasia | F172: Tostados | G172: 9 | H172: 10 | I172: 6,804
C173: 2017 | D173: 2 | E173: Marruecos | F173: Café Verde | G173: 549 | H173: 641 | I173: 142,639
C174: 2017 | D174: 2 | E174: México | F174: Café Verde | G174: 3,395 | H174: 3,959 | I174: 917,776
C175: 2017 | D175: 2 | E175: México | F175: Soluble | G175: 4,472 | H175: 5,220 | I175: 1,585,252
C176: 2017 | D176: 2 | E176: México | F176: Tostados | G176: 141 | H176: 164 | I176: 94,565
C177: 2017 | D177: 2 | E177: Noruega | F177: Café Verde | G177: 11,181 | H177: 13,048 | I177: 2,699,266
C178: 2017 | D178: 2 | E178: Nueva Zelanda | F178: Café Verde | G178: 2,272 | H178: 2,652 | I178: 610,682
C179: 2017 | D179: 2 | E179: Nueva Zelanda | F179: Soluble | G179: 77 | H179: 91 | I179: 36,686
C180: 2017 | D180: 2 | E180: Países Bajos | F180: Café Verde | G180: 6,760 | H180: 7,885 | I180: 1,713,711
C181: 2017 | D181: 2 | E181: Panamá | F181: Soluble | G181: 82 | H181: 96 | I181: 40,627
C182: 2017 | D182: 2 | E182: Panamá | F182: Tostados | G182: 370 | H182: 434 | I182: 86,287
C183: 2017 | D183: 2 | E183: Paraguay | F183: Soluble | G183: 138 | H183: 160 | I183: 85,389
C184: 2017 | D184: 2 | E184: Paraguay | F184: Tostados | G184: 61 | H184: 71 | I184: 47,114
C185: 2017 | D185: 2 | E185: Perú | F185: Soluble | G185: 3,093 | H185: 3,608 | I185: 762,426
C186: 2017 | D186: 2 | E186: Perú | F186: Tostados | G186: 69 | H186: 80 | I186: 46,041
C187: 2017 | D187: 2 | E187: Polonia | F187: Café Verde | G187: 572 | H187: 668 | I187: 140,551
C188: 2017 | D188: 2 | E188: Polonia | F188: Soluble | G188: 1,145 | H188: 1,334 | I188: 367,419
C189: 2017 | D189: 2 | E189: Portugal | F189: Café Verde | G189: 1,385 | H189: 1,617 | I189: 240,406
C190: 2017 | D190: 2 | E190: Puerto Rico | F190: Soluble | G190: 231 | H190: 269 | I190: 53,201
C191: 2017 | D191: 2 | E191: Reino Unido | F191: Café Verde | G191: 24,267 | H191: 28,311 | I191: 3,953,431
C192: 2017 | D192: 2 | E192: Reino Unido | F192: Soluble | G192: 1,433 | H192: 1,673 | I192: 562,610
C193: 2017 | D193: 2 | E193: Rep.Dominicana | F193: Café Verde | G193: 2,855 | H193: 3,333 | I193: 556,485
C194: 2017 | D194: 2 | E194: Rep.Dominicana | F194: Soluble | G194: 48 | H194: 56 | I194: 13,259
C195: 2017 | D195: 2 | E195: Reunión | F195: Café Verde | G195: 299 | H195: 349 | I195: 70,835
C196: 2017 | D196: 2 | E196: Rumanía | F196: Café Verde | G196: 1,468 | H196: 1,712 | I196: 381,699
C197: 2017 | D197: 2 | E197: Santa Lucía | F197: Soluble | G197: 30 | H197: 35 | I197: 18,198
C198: 2017 | D198: 2 | E198: Singapur | F198: Café Verde | G198: 562 | H198: 655 | I198: 130,830
C199: 2017 | D199: 2 | E199: Siria | F199: Café Verde | G199: 1,668 | H199: 1,946 | I199: 348,323
C200: 2017 | D200: 2 | E200: Suecia | F200: Café Verde | G200: 10,635 | H200: 12,407 | I200: 2,623,816
C201: 2017 | D201: 2 | E201: Suecia | F201: Soluble | G201: 205 | H201: 238 | I201: 73,743
C202: 2017 | D202: 2 | E202: Suiza | F202: Café Verde | G202: 5 | H202: 6 | I202: 3,357
... 4298 more rows

Sheet 8. Exportador_Vol
C2: Volumen de las exportaciones colombianas de café según exportador - anual
C3: Unidad: Miles de sacos de 60 Kg de café verde equivalente
C4: Información Definitiva
C5: Fuente: Federación Nacional de Cafeteros
B6: Volver
D8: Año | E8: Federación Nacional de Cafeteros | F8: Particulares | G8: Total
D9: 2000 | E9: 3,326 | F9: 5,887 | G9: 9,212
D10: 2001 | E10: 3,620 | F10: 6,365 | G10: 9,985
D11: 2002 | E11: 2,777 | F11: 7,519 | G11: 10,296
D12: 2003 | E12: 2,718 | F12: 7,571 | G12: 10,289
D13: 2004 | E13: 2,754 | F13: 7,509 | G13: 10,263
D14: 2005 | E14: 2,932 | F14: 7,939 | G14: 10,871
D15: 2006 | E15: 2,925 | F15: 8,021 | G15: 10,945
D16: 2007 | E16: 2,629 | F16: 8,671 | G16: 11,301
D17: 2008 | E17: 3,004 | F17: 8,081 | G17: 11,086
D18: 2009 | E18: 2,297 | F18: 5,597 | G18: 7,894
D19: 2010 | E19: 2,041 | F19: 5,780 | G19: 7,822
D20: 2011 | E20: 1,828 | F20: 5,906 | G20: 7,734
D21: 2012 | E21: 1,853 | F21: 5,316 | G21: 7,169
D22: 2013 | E22: 2,394 | F22: 7,278 | G22: 9,672
D23: 2014 | E23: 2,410 | F23: 8,547 | G23: 10,957
D24: 2015 | E24: 2,736 | F24: 9,977 | G24: 12,714
D25: 2016 | E25: 2,915 | F25: 9,930 | G25: 12,845
D26: 2017 | E26: 2,373 | F26: 10,610 | G26: 12,983
D27: 2018 | E27: 2,352 | F27: 10,400 | G27: 12,751
D28: 2019 | E28: 2,323 | F28: 11,345 | G28: 13,668
D29: 2020 | E29: 2,396 | F29: 10,131 | G29: 12,527
D30: 2021 | E30: 2,259 | F30: 10,179 | G30: 12,439
D31: 2022 | E31: 1,830 | F31: 9,579 | G31: 11,408
D32: 2023 | E32: 1,908 | F32: 8,671 | G32: 10,579
D33: 2024 | E33: 2,259 | F33: 10,064 | G33: 12,323
D34: 2025
D35: 2026
D36: 2027
D37: 2028
D38: 2029

Sheet 9. Exportador_Val
C2: Valor de las exportaciones según exportador - mensual*
C3: Unidad: Millones de Dólares corrientes
C4: Información Preliminar
C5: Fuente: Federación Nacional de Cafeteros
B6: Volver
C8: Año | D8: Mes | E8: Federación Nacional de Cafeteros | F8: Particulares | G8: Total
C9: 2000 | D9: enero | E9: 25.8 | F9: 58.6 | G9: 84.4
C10: 2000 | D10: febrero | E10: 34.5 | F10: 67.7 | G10: 102.2
C11: 2000 | D11: marzo | E11: 22.5 | F11: 37.8 | G11: 60.3
C12: 2000 | D12: abril | E12: 35.0 | F12: 73.3 | G12: 108.3
C13: 2000 | D13: mayo | E13: 31.3 | F13: 54.3 | G13: 85.6
C14: 2000 | D14: junio | E14: 34.0 | F14: 84.4 | G14: 118.4
C15: 2000 | D15: julio | E15: 39.1 | F15: 55.9 | G15: 95.0
C16: 2000 | D16: agosto | E16: 49.4 | F16: 70.5 | G16: 119.9
C17: 2000 | D17: septiembre | E17: 24.6 | F17: 54.3 | G17: 79.0
C18: 2000 | D18: octubre | E18: 29.6 | F18: 62.3 | G18: 91.9
C19: 2000 | D19: noviembre | E19: 36.8 | F19: 92.7 | G19: 129.5
C20: 2000 | D20: diciembre | E20: 46.6 | F20: 57.2 | G20: 103.8
C21: 2001 | D21: enero | E21: 16.3 | F21: 44.2 | G21: 60.5
C22: 2001 | D22: febrero | E22: 27.7 | F22: 51.5 | G22: 79.3
C23: 2001 | D23: marzo | E23: 26.3 | F23: 33.0 | G23: 59.3
C24: 2001 | D24: abril | E24: 22.8 | F24: 46.7 | G24: 69.6
C25: 2001 | D25: mayo | E25: 26.7 | F25: 47.5 | G25: 74.2
C26: 2001 | D26: junio | E26: 24.3 | F26: 49.3 | G26: 73.6
C27: 2001 | D27: julio | E27: 21.7 | F27: 41.5 | G27: 63.2
C28: 2001 | D28: agosto | E28: 20.1 | F28: 39.9 | G28: 60.0
C29: 2001 | D29: septiembre | E29: 19.2 | F29: 30.8 | G29: 50.0
C30: 2001 | D30: octubre | E30: 30.5 | F30: 51.9 | G30: 82.4
C31: 2001 | D31: noviembre | E31: 34.9 | F31: 64.2 | G31: 99.0
C32: 2001 | D32: diciembre | E32: 27.1 | F32: 67.2 | G32: 94.4
C33: 2002 | D33: enero | E33: 17.3 | F33: 42.5 | G33: 59.7
C34: 2002 | D34: febrero | E34: 24.6 | F34: 44.3 | G34: 68.9
C35: 2002 | D35: marzo | E35: 20.4 | F35: 45.0 | G35: 65.4
C36: 2002 | D36: abril | E36: 16.7 | F36: 49.0 | G36: 65.7
C37: 2002 | D37: mayo | E37: 18.7 | F37: 55.1 | G37: 73.8
C38: 2002 | D38: junio | E38: 19.9 | F38: 50.7 | G38: 70.6
C39: 2002 | D39: julio | E39: 17.7 | F39: 42.3 | G39: 60.1
C40: 2002 | D40: agosto | E40: 23.5 | F40: 43.4 | G40: 66.9
C41: 2002 | D41: septiembre | E41: 16.0 | F41: 40.4 | G41: 56.4
C42: 2002 | D42: octubre | E42: 14.9 | F42: 54.1 | G42: 68.9
C43: 2002 | D43: noviembre | E43: 28.9 | F43: 67.8 | G43: 96.7
C44: 2002 | D44: diciembre | E44: 24.4 | F44: 88.7 | G44: 113.2
C45: 2003 | D45: enero | E45: 13.0 | F45: 54.5 | G45: 67.5
C46: 2003 | D46: febrero | E46: 19.3 | F46: 59.9 | G46: 79.2
C47: 2003 | D47: marzo | E47: 18.3 | F47: 46.7 | G47: 65.0
C48: 2003 | D48: abril | E48: 16.6 | F48: 54.9 | G48: 71.4
C49: 2003 | D49: mayo | E49: 18.2 | F49: 48.4 | G49: 66.6
C50: 2003 | D50: junio | E50: 23.7 | F50: 55.5 | G50: 79.2
C51: 2003 | D51: julio | E51: 27.0 | F51: 51.3 | G51: 78.3
C52: 2003 | D52: agosto | E52: 22.9 | F52: 41.5 | G52: 64.5
C53: 2003 | D53: septiembre | E53: 18.1 | F53: 50.2 | G53: 68.3
C54: 2003 | D54: octubre | E54: 23.9 | F54: 56.5 | G54: 80.4
C55: 2003 | D55: noviembre | E55: 27.2 | F55: 60.4 | G55: 87.5
C56: 2003 | D56: diciembre | E56: 32.9 | F56: 68.5 | G56: 101.5
C57: 2004 | D57: enero | E57: 24.7 | F57: 56.9 | G57: 81.6
C58: 2004 | D58: febrero | E58: 30.8 | F58: 61.4 | G58: 92.2
C59: 2004 | D59: marzo | E59: 30.0 | F59: 56.9 | G59: 86.9
C60: 2004 | D60: abril | E60: 22.7 | F60: 57.9 | G60: 80.6
C61: 2004 | D61: mayo | E61: 17.9 | F61: 59.7 | G61: 77.6
C62: 2004 | D62: junio | E62: 28.3 | F62: 57.8 | G62: 86.1
C63: 2004 | D63: julio | E63: 27.0 | F63: 61.7 | G63: 88.7
C64: 2004 | D64: agosto | E64: 24.7 | F64: 52.4 | G64: 77.1
C65: 2004 | D65: septiembre | E65: 13.6 | F65: 34.6 | G65: 48.2
C66: 2004 | D66: octubre | E66: 28.0 | F66: 70.8 | G66: 98.8
C67: 2004 | D67: noviembre | E67: 22.5 | F67: 84.6 | G67: 107.1
C68: 2004 | D68: diciembre | E68: 41.5 | F68: 108.0 | G68: 149.5
C69: 2005 | D69: enero | E69: 36.1 | F69: 106.7 | G69: 142.9
C70: 2005 | D70: febrero | E70: 42.0 | F70: 114.8 | G70: 156.7
C71: 2005 | D71: marzo | E71: 37.6 | F71: 104.4 | G71: 141.9
C72: 2005 | D72: abril | E72: 25.3 | F72: 113.4 | G72: 138.7
C73: 2005 | D73: mayo | E73: 34.8 | F73: 103.5 | G73: 138.2
C74: 2005 | D74: junio | E74: 45.4 | F74: 94.4 | G74: 139.8
C75: 2005 | D75: julio | E75: 41.6 | F75: 82.3 | G75: 123.9
C76: 2005 | D76: agosto | E76: 37.2 | F76: 81.3 | G76: 118.5
C77: 2005 | D77: septiembre | E77: 23.8 | F77: 77.6 | G77: 101.4
C78: 2005 | D78: octubre | E78: 29.6 | F78: 73.5 | G78: 103.1
C79: 2005 | D79: noviembre | E79: 41.9 | F79: 96.2 | G79: 138.1
C80: 2005 | D80: diciembre | E80: 50.3 | F80: 118.2 | G80: 168.5
C81: 2006 | D81: enero | E81: 37.5 | F81: 87.0 | G81: 124.5
C82: 2006 | D82: febrero | E82: 53.2 | F82: 93.3 | G82: 146.4
C83: 2006 | D83: marzo | E83: 45.0 | F83: 94.1 | G83: 139.1
C84: 2006 | D84: abril | E84: 28.8 | F84: 69.9 | G84: 98.7
C85: 2006 | D85: mayo | E85: 31.7 | F85: 102.5 | G85: 134.2
C86: 2006 | D86: junio | E86: 42.8 | F86: 90.8 | G86: 133.6
C87: 2006 | D87: julio | E87: 38.5 | F87: 95.4 | G87: 133.9
C88: 2006 | D88: agosto | E88: 41.1 | F88: 95.9 | G88: 137.0
C89: 2006 | D89: septiembre | E89: 48.1 | F89: 97.1 | G89: 145.2
C90: 2006 | D90: octubre | E90: 24.2 | F90: 119.1 | G90: 143.2
C91: 2006 | D91: noviembre | E91: 27.3 | F91: 114.4 | G91: 141.7
C92: 2006 | D92: diciembre | E92: 45.1 | F92: 153.9 | G92: 199.0
C93: 2007 | D93: enero | E93: 32.4 | F93: 112.6 | G93: 145.1
C94: 2007 | D94: febrero | E94: 38.3 | F94: 124.4 | G94: 162.7
C95: 2007 | D95: marzo | E95: 37.8 | F95: 110.3 | G95: 148.1
C96: 2007 | D96: abril | E96: 32.4 | F96: 88.9 | G96: 121.3
C97: 2007 | D97: mayo | E97: 33.6 | F97: 92.2 | G97: 125.8
C98: 2007 | D98: junio | E98: 29.3 | F98: 112.3 | G98: 141.6
C99: 2007 | D99: julio | E99: 43.5 | F99: 110.3 | G99: 153.8
C100: 2007 | D100: agosto | E100: 39.5 | F100: 121.2 | G100: 160.8
C101: 2007 | D101: septiembre | E101: 41.5 | F101: 119.6 | G101: 161.0
C102: 2007 | D102: octubre | E102: 35.2 | F102: 115.7 | G102: 150.9
C103: 2007 | D103: noviembre | E103: 48.5 | F103: 138.4 | G103: 187.0
C104: 2007 | D104: diciembre | E104: 56.5 | F104: 178.4 | G104: 234.9
C105: 2008 | D105: enero | E105: 42.5 | F105: 149.4 | G105: 191.9
C106: 2008 | D106: febrero | E106: 57.6 | F106: 162.0 | G106: 219.6
C107: 2008 | D107: marzo | E107: 43.8 | F107: 134.1 | G107: 177.9
C108: 2008 | D108: abril | E108: 60.0 | F108: 123.3 | G108: 183.3
C109: 2008 | D109: mayo | E109: 53.3 | F109: 119.5 | G109: 172.8
C110: 2008 | D110: junio | E110: 51.0 | F110: 135.4 | G110: 186.4
C111: 2008 | D111: julio | E111: 53.6 | F111: 126.1 | G111: 179.7
C112: 2008 | D112: agosto | E112: 40.9 | F112: 90.2 | G112: 131.1
C113: 2008 | D113: septiembre | E113: 54.9 | F113: 140.2 | G113: 195.1
C114: 2008 | D114: octubre | E114: 48.8 | F114: 118.5 | G114: 167.3
C115: 2008 | D115: noviembre | E115: 50.8 | F115: 120.4 | G115: 171.2
C116: 2008 | D116: diciembre | E116: 59.5 | F116: 126.8 | G116: 186.3
C117: 2009 | D117: enero | E117: 36.4 | F117: 120.8 | G117: 157.2
C118: 2009 | D118: febrero | E118: 49.6 | F118: 124.0 | G118: 173.6
C119: 2009 | D119: marzo | E119: 41.3 | F119: 111.1 | G119: 152.4
C120: 2009 | D120: abril | E120: 35.3 | F120: 73.8 | G120: 109.1
C121: 2009 | D121: mayo | E121: 32.3 | F121: 91.7 | G121: 124.0
C122: 2009 | D122: junio | E122: 43.6 | F122: 110.9 | G122: 154.5
C123: 2009 | D123: julio | E123: 40.1 | F123: 105.4 | G123: 145.5
C124: 2009 | D124: agosto | E124: 29.0 | F124: 89.0 | G124: 118.0
C125: 2009 | D125: septiembre | E125: 36.9 | F125: 83.6 | G125: 120.5
C126: 2009 | D126: octubre | E126: 41.3 | F126: 87.8 | G126: 129.1
C127: 2009 | D127: noviembre | E127: 44.7 | F127: 99.1 | G127: 143.8
C128: 2009 | D128: diciembre | E128: 51.7 | F128: 134.4 | G128: 186.1
C129: 2010 | D129: enero | E129: 38.2 | F129: 96.0 | G129: 134.2
C130: 2010 | D130: febrero | E130: 35.9 | F130: 118.6 | G130: 154.5
C131: 2010 | D131: marzo | E131: 41.4 | F131: 111.3 | G131: 152.8
C132: 2010 | D132: abril | E132: 34.4 | F132: 120.4 | G132: 154.8
C133: 2010 | D133: mayo | E133: 27.1 | F133: 126.3 | G133: 153.5
C134: 2010 | D134: junio | E134: 38.1 | F134: 133.5 | G134: 171.6
C135: 2010 | D135: julio | E135: 51.9 | F135: 121.1 | G135: 173.0
C136: 2010 | D136: agosto | E136: 60.8 | F136: 117.8 | G136: 178.6
C137: 2010 | D137: septiembre | E137: 56.8 | F137: 104.6 | G137: 161.4
C138: 2010 | D138: octubre | E138: 40.5 | F138: 145.5 | G138: 186.0
C139: 2010 | D139: noviembre | E139: 61.8 | F139: 193.0 | G139: 254.8
C140: 2010 | D140: diciembre | E140: 92.5 | F140: 248.1 | G140: 340.5
C141: 2011 | D141: enero | E141: 53.8 | F141: 220.0 | G141: 273.8
C142: 2011 | D142: febrero | E142: 55.7 | F142: 172.6 | G142: 228.4
C143: 2011 | D143: marzo | E143: 87.3 | F143: 246.6 | G143: 333.9
C144: 2011 | D144: abril | E144: 44.4 | F144: 177.7 | G144: 222.1
C145: 2011 | D145: mayo | E145: 55.2 | F145: 180.4 | G145: 235.6
C146: 2011 | D146: junio | E146: 64.3 | F146: 159.5 | G146: 223.8
C147: 2011 | D147: julio | E147: 57.9 | F147: 133.3 | G147: 191.2
C148: 2011 | D148: agosto | E148: 46.0 | F148: 108.2 | G148: 154.2
C149: 2011 | D149: septiembre | E149: 49.2 | F149: 135.9 | G149: 185.1
C150: 2011 | D150: octubre | E150: 49.0 | F150: 170.5 | G150: 219.5
C151: 2011 | D151: noviembre | E151: 70.4 | F151: 208.9 | G151: 279.2
C152: 2011 | D152: diciembre | E152: 67.9 | F152: 232.3 | G152: 300.2
C153: 2012 | D153: enero | E153: 46.3 | F153: 142.0 | G153: 188.2
C154: 2012 | D154: febrero | E154: 51.9 | F154: 136.0 | G154: 187.9
C155: 2012 | D155: marzo | E155: 67.5 | F155: 134.9 | G155: 202.3
C156: 2012 | D156: abril | E156: 44.0 | F156: 118.0 | G156: =+F156+E156 -> 162.0
C157: 2012 | D157: mayo | E157: 39.1 | F157: 140.6 | G157: 179.7
C158: 2012 | D158: junio | E158: 36.3 | F158: 144.1 | G158: 180.4
C159: 2012 | D159: julio | E159: 39.3 | F159: 119.2 | G159: 158.5
C160: 2012 | D160: agosto | E160: 46.5 | F160: 120.7 | G160: 167.2
C161: 2012 | D161: septiembre | E161: 41.6 | F161: 105.8 | G161: 147.4
C162: 2012 | D162: octubre | E162: 37.2 | F162: 123.6 | G162: 160.8
C163: 2012 | D163: noviembre | E163: 54.2 | F163: 139.8 | G163: 194.0
C164: 2012 | D164: diciembre | E164: 59.7 | F164: 146.3 | G164: 206.0
C165: 2013 | D165: enero | E165: 59.3 | F165: 123.7 | G165: 183.0
C166: 2013 | D166: febrero | E166: 56.5 | F166: 123.5 | G166: 180.0
C167: 2013 | D167: marzo | E167: 44.7 | F167: 122.3 | G167: 167.0
C168: 2013 | D168: abril | E168: 44.6 | F168: 117.3 | G168: 161.9
C169: 2013 | D169: mayo | E169: 60.4 | F169: 139.4 | G169: 199.8
C170: 2013 | D170: junio | E170: 39.5 | F170: 113.4 | G170: 152.9
C171: 2013 | D171: julio | E171: 38.0 | F171: 137.4 | G171: 175.4
C172: 2013 | D172: agosto | E172: 46.5 | F172: 151.0 | G172: 197.5
C173: 2013 | D173: septiembre | E173: 40.9 | F173: 104.6 | G173: 145.5
C174: 2013 | D174: octubre | E174: 33.8 | F174: 152.1 | G174: 185.9
C175: 2013 | D175: noviembre | E175: 40.1 | F175: 168.2 | G175: 208.3
C176: 2013 | D176: diciembre | E176: 39.2 | F176: 161.9 | G176: 201.1
C177: 2014 | D177: enero | E177: 43.2 | F177: 138.6 | G177: 181.8
C178: 2014 | D178: febrero | E178: 56.0 | F178: 139.4 | G178: 195.4
C179: 2014 | D179: marzo | E179: 56.3 | F179: 147.8 | G179: 204.1
C180: 2014 | D180: abril | E180: 59.7 | F180: 136.5 | G180: 196.1
C181: 2014 | D181: mayo | E181: 66.0 | F181: 142.7 | G181: 208.7
C182: 2014 | D182: junio | E182: 59.2 | F182: 137.3 | G182: 196.5
C183: 2014 | D183: julio | E183: 53.0 | F183: 176.5 | G183: 229.5
C184: 2014 | D184: agosto | E184: 45.4 | F184: 178.6 | G184: 224.0
C185: 2014 | D185: septiembre | E185: 44.7 | F185: 182.1 | G185: 226.8
C186: 2014 | D186: octubre | E186: 49.2 | F186: 214.4 | G186: 263.6
C187: 2014 | D187: noviembre | E187: 55.7 | F187: 217.7 | G187: 273.3
C188: 2014 | D188: diciembre | E188: 55.2 | F188: 230.1 | G188: 285.4
C189: 2015 | D189: enero | E189: 51.9 | F189: 218.6 | G189: 270.6
C190: 2015 | D190: febrero | E190: 58.5 | F190: 211.5 | G190: 270.0
C191: 2015 | D191: marzo | E191: 51.6 | F191: 139.0 | G191: 190.6
C192: 2015 | D192: abril | E192: 56.1 | F192: 168.9 | G192: 225.0
C193: 2015 | D193: mayo | E193: 46.3 | F193: 171.4 | G193: 217.7
C194: 2015 | D194: junio | E194: 47.6 | F194: 176.4 | G194: 224.0
C195: 2015 | D195: julio | E195: 56.0 | F195: 199.7 | G195: 255.7
C196: 2015 | D196: agosto | E196: 50.8 | F196: 176.2 | G196: 227.0
C197: 2015 | D197: septiembre | E197: 49.3 | F197: 173.3 | G197: 222.6
C198: 2015 | D198: octubre | E198: 47.0 | F198: 193.7 | G198: 240.7
C199: 2015 | D199: noviembre | E199: 47.4 | F199: 168.0 | G199: 215.4
C200: 2015 | D200: diciembre | E200: 47.1 | F200: 181.2 | G200: 228.3
C201: 2016 | D201: enero | E201: 50.9 | F201: 160.5 | G201: 211.4
C202: 2016 | D202: febrero | E202: 50.4 | F202: 164.3 | G202: 214.7
... 116 more rows

Sheet 10. Exportador_Destino
C2: Valor y volumen de las exportaciones según exportador y destino de exportación- mensual*
C3: Unidades: Sacos de 70 kg equivalentes reales, Sacos de 60 Kg de café verde equivalente y dólares corrientes
C4: Información Preliminar
C5: Fuente: Federación Nacional de Cafeteros
B6: Volver
C8: Año | D8: Mes | E8: País destino | F8: Nombre exportador | G8: Sacos de 70 kg. equivalente real Exportados | H8: Sacos de 60 Kg. Exportados | I8: Valor Factura (USD)*
C9: 2017 | D9: 1 | E9: Alemania | F9: A LAUMAYER Y COMPAÑIA EXPORTADORES | G9: 4,691.0 | H9: 5,471.0 | I9: $ 1,133,800
C10: 2017 | D10: 1 | E10: Alemania | F10: ALTAMIRA SUPREMO S.A.S. | G10: 825.0 | H10: 962.0 | I10: $ 150,000
C11: 2017 | D11: 1 | E11: Alemania | F11: BANCA EXPORTADORA S.A BANEXPORT | G11: 275.0 | H11: 321.0 | I11: $ 80,000
C12: 2017 | D12: 1 | E12: Alemania | F12: C. I. KYOTO LOHAS BEANS S.A.S | G12: 271.0 | H12: 316.0 | I12: $ 96,744
C13: 2017 | D13: 1 | E13: Alemania | F13: CAFE COLSUAVES S.A.S | G13: 300.0 | H13: 350.0 | I13: $ 64,500
C14: 2017 | D14: 1 | E14: Alemania | F14: CARAVELA COLOMBIA S.A.S | G14: 286.0 | H14: 334.0 | I14: $ 61,490
C15: 2017 | D15: 1 | E15: Alemania | F15: CARCAFE LTDA | G15: 3,107.0 | H15: 3,625.0 | I15: $ 778,706
C16: 2017 | D16: 1 | E16: Alemania | F16: COFCO COLOMBIA S.A.S | G16: 275.0 | H16: 321.0 | I16: $ 50,000
C17: 2017 | D17: 1 | E17: Alemania | F17: COMERCIALIZADORA TIERRA CAFE S.A.S. | G17: 283.0 | H17: 332.0 | I17: $ 101,571
C18: 2017 | D18: 1 | E18: Alemania | F18: COMPAÑÍA CAFETERA LA MESETA S.A. | G18: 3,596.0 | H18: 4,197.0 | I18: $ 908,269
C19: 2017 | D19: 1 | E19: Alemania | F19: COMPAÑIA COLOMBIANA AGROINDUSTRIAL | G19: 899.0 | H19: 1,049.0 | I19: $ 207,631
C20: 2017 | D20: 1 | E20: Alemania | F20: COMPAÑIA NACIONAL DEL CAFÉ S.A.S | G20: 6,783.0 | H20: 7,912.0 | I20: $ 1,777,310
C21: 2017 | D21: 1 | E21: Alemania | F21: COOPERATIVA DE CAFICULTORES | G21: 190.0 | H21: 223.0 | I21: $ 88,090
C22: 2017 | D22: 1 | E22: Alemania | F22: DESCAFEINADORA COLOMBIANA S.A.S | G22: 1.0 | H22: 1.0 | I22: $ 2,475
C23: 2017 | D23: 1 | E23: Alemania | F23: ENGELHART CTP (COLOMBIA ) S.A.S. | G23: 10,237.0 | H23: 11,943.0 | I23: $ 2,175,992
C24: 2017 | D24: 1 | E24: Alemania | F24: FEDERACION NACIONAL DE CAFETEROS | G24: 16,948.0 | H24: 19,770.0 | I24: $ 4,515,533
C25: 2017 | D25: 1 | E25: Alemania | F25: INDUSTRIA COLOMBIANA DE CAFÉ S.A.S. | G25: 114.0 | H25: 132.0 | I25: $ 42,784
C26: 2017 | D26: 1 | E26: Alemania | F26: INDUSTRIAS ALIADAS S.A.S | G26: 458.0 | H26: 534.0 | I26: $ 104,720
C27: 2017 | D27: 1 | E27: Alemania | F27: LOUIS DREYFUS COMPANY COLOMBIA | G27: 7,727.0 | H27: 9,015.0 | I27: $ 1,300,000
C28: 2017 | D28: 1 | E28: Alemania | F28: LOUIS DREYFUS COMPANY COLOMBIA S.A. | G28: 2,401.0 | H28: 2,801.0 | I28: $ 400,000
C29: 2017 | D29: 1 | E29: Alemania | F29: OLAM AGRO COLOMBIA S.A.S | G29: 1,100.0 | H29: 1,283.0 | I29: $ 236,285
C30: 2017 | D30: 1 | E30: Alemania | F30: PROMOTORA DE INVERSIONES | G30: 275.0 | H30: 321.0 | I30: $ 64,196
C31: 2017 | D31: 1 | E31: Alemania | F31: RACAFE & CIA S.C.A. | G31: 2,923.0 | H31: 3,408.0 | I31: $ 691,635
C32: 2017 | D32: 1 | E32: Alemania | F32: RAFAEL ESPINOSA HERMANOS & CIA SCA | G32: 275.0 | H32: 321.0 | I32: $ 76,599
C33: 2017 | D33: 1 | E33: Alemania | F33: RESTCAFE S A S | G33: 3.0 | H33: 3.0 | I33: $ 1,253
C34: 2017 | D34: 1 | E34: Alemania | F34: SKN CARIBECAFE LTDA | G34: 3,244.0 | H34: 3,782.0 | I34: $ 892,887
C35: 2017 | D35: 1 | E35: Alemania | F35: SOCIEDAD EXPORTADORA DE CAFE | G35: 5,660.0 | H35: 6,606.0 | I35: $ 1,436,275
C36: 2017 | D36: 1 | E36: Alemania | F36: VILLEGAS Y CIA. SOCIEDAD EN COMANDI | G36: 511.0 | H36: 596.0 | I36: $ 100,000
C37: 2017 | D37: 1 | E37: Argentina | F37: FEDERACION NACIONAL DE CAFETEROS | G37: 275.0 | H37: 321.0 | I37: $ 99,825
C38: 2017 | D38: 1 | E38: Argentina | F38: RACAFE & CIA S.C.A. | G38: 1,140.0 | H38: 1,329.0 | I38: $ 296,876
C39: 2017 | D39: 1 | E39: Aruba | F39: RESTCAFE S A S | G39: 9.0 | H39: 10.0 | I39: $ 4,481
C40: 2017 | D40: 1 | E40: Australia | F40: A LAUMAYER Y COMPAÑIA EXPORTADORES | G40: 855.0 | H40: 996.0 | I40: $ 226,463
C41: 2017 | D41: 1 | E41: Australia | F41: ALEXCAFE SAS | G41: 823.0 | H41: 961.0 | I41: $ 170,000
C42: 2017 | D42: 1 | E42: Australia | F42: ALTAMIRA SUPREMO S.A.S. | G42: 275.0 | H42: 319.0 | I42: $ 50,000
C43: 2017 | D43: 1 | E43: Australia | F43: ASOCIACION DE PRODUCTORES AGROPECUA | G43: 273.0 | H43: 319.0 | I43: $ 94,485
C44: 2017 | D44: 1 | E44: Australia | F44: BANCA EXPORTADORA S.A | G44: 269.0 | H44: 314.0 | I44: $ 50,000
C45: 2017 | D45: 1 | E45: Australia | F45: BANCA EXPORTADORA S.A BANEXPORT | G45: 260.0 | H45: 303.0 | I45: $ 80,000
C46: 2017 | D46: 1 | E46: Australia | F46: CAFE GRANJA LA ESPERANZA S.A. C.I. | G46: 189.0 | H46: 219.0 | I46: $ 47,085
C47: 2017 | D47: 1 | E47: Australia | F47: CAFETRILLA EXPORTADORA LTDA | G47: 284.0 | H47: 332.0 | I47: $ 74,120
C48: 2017 | D48: 1 | E48: Australia | F48: CARAVELA COLOMBIA S.A.S | G48: 1,478.0 | H48: 1,724.0 | I48: $ 347,870
C49: 2017 | D49: 1 | E49: Australia | F49: CARCAFE LTDA | G49: 1,374.0 | H49: 1,603.0 | I49: $ 338,900
C50: 2017 | D50: 1 | E50: Australia | F50: COFCO COLOMBIA S.A.S | G50: 550.0 | H50: 642.0 | I50: $ 100,000
C51: 2017 | D51: 1 | E51: Australia | F51: COMPAÑÍA CAFETERA LA MESETA S.A. | G51: 300.0 | H51: 350.0 | I51: $ 75,321
C52: 2017 | D52: 1 | E52: Australia | F52: COMPAÑIA COLOMBIANA AGROINDUSTRIAL | G52: 1,134.0 | H52: 1,324.0 | I52: $ 272,239
C53: 2017 | D53: 1 | E53: Australia | F53: COMPAÑIA NACIONAL DEL CAFÉ S.A.S | G53: 274.0 | H53: 320.0 | I53: $ 50,000
C54: 2017 | D54: 1 | E54: Australia | F54: COOPERATIVA DE CAFICULTORES | G54: 284.0 | H54: 332.0 | I54: $ 50,000
C55: 2017 | D55: 1 | E55: Australia | F55: ENGELHART CTP (COLOMBIA ) S.A.S. | G55: 275.0 | H55: 320.0 | I55: $ 50,000
C56: 2017 | D56: 1 | E56: Australia | F56: FEDERACION NACIONAL DE CAFETEROS | G56: 111.0 | H56: 129.0 | I56: $ 64,928
C57: 2017 | D57: 1 | E57: Australia | F57: INDUSTRIA COLOMBIANA DE CAFÉ S.A.S. | G57: 225.0 | H57: 263.0 | I57: $ 55,924
C58: 2017 | D58: 1 | E58: Australia | F58: INVERCAFE CERRITOS S. A. S. | G58: 552.0 | H58: 644.0 | I58: $ 175,432
C59: 2017 | D59: 1 | E59: Australia | F59: OLAM AGRO COLOMBIA S.A.S | G59: 580.0 | H59: 676.0 | I59: $ 124,700
C60: 2017 | D60: 1 | E60: Australia | F60: RACAFE & CIA S.C.A. | G60: 835.0 | H60: 974.0 | I60: $ 228,013
C61: 2017 | D61: 1 | E61: Australia | F61: RAFAEL ESPINOSA HERMANOS & CIA SCA | G61: 275.0 | H61: 321.0 | I61: $ 78,119
C62: 2017 | D62: 1 | E62: Australia | F62: SHARED SOURCE SAS | G62: 273.0 | H62: 319.0 | I62: $ 58,910
C63: 2017 | D63: 1 | E63: Bélgica | F63: A LAUMAYER Y COMPAÑIA EXPORTADORES | G63: 6,204.0 | H63: 7,234.0 | I63: $ 1,533,191
C64: 2017 | D64: 1 | E64: Bélgica | F64: ALTAMIRA SUPREMO S.A.S. | G64: 285.0 | H64: 333.0 | I64: $ 50,000
C65: 2017 | D65: 1 | E65: Bélgica | F65: C. I. KYOTO LOHAS BEANS S.A.S | G65: 560.0 | H65: 654.0 | I65: $ 169,073
C66: 2017 | D66: 1 | E66: Bélgica | F66: CARCAFE LTDA | G66: 1,645.0 | H66: 1,918.0 | I66: $ 543,001
C67: 2017 | D67: 1 | E67: Bélgica | F67: COFCO COLOMBIA S.A.S | G67: 2,258.0 | H67: 2,636.0 | I67: $ 439,198
C68: 2017 | D68: 1 | E68: Bélgica | F68: COMPAÑÍA CAFETERA LA MESETA S.A. | G68: 1,669.0 | H68: 1,950.0 | I68: $ 421,641
C69: 2017 | D69: 1 | E69: Bélgica | F69: COMPAÑIA COLOMBIANA AGROINDUSTRIAL | G69: 548.0 | H69: 640.0 | I69: $ 131,800
C70: 2017 | D70: 1 | E70: Bélgica | F70: COOPERATIVA DE CAFICULTORES | G70: 274.0 | H70: 320.0 | I70: $ 88,090
C71: 2017 | D71: 1 | E71: Bélgica | F71: COOPERATIVA DE CAFICULTORES DE ANDE | G71: 584.0 | H71: 680.0 | I71: $ 176,180
C72: 2017 | D72: 1 | E72: Bélgica | F72: ENGELHART CTP (COLOMBIA ) S.A.S. | G72: 3,838.0 | H72: 4,481.0 | I72: $ 948,863
C73: 2017 | D73: 1 | E73: Bélgica | F73: FEDERACION NACIONAL DE CAFETEROS | G73: 11,592.0 | H73: 13,527.0 | I73: $ 1,973,334
C74: 2017 | D74: 1 | E74: Bélgica | F74: LOUIS DREYFUS COMPANY COLOMBIA | G74: 2,700.0 | H74: 3,151.0 | I74: $ 450,000
C75: 2017 | D75: 1 | E75: Bélgica | F75: LOUIS DREYFUS COMPANY COLOMBIA S.A. | G75: 300.0 | H75: 350.0 | I75: $ 50,000
C76: 2017 | D76: 1 | E76: Bélgica | F76: MILD COFFEE COMPANY HUILA S.A.S C.I | G76: 1,495.0 | H76: 1,743.0 | I76: $ 358,070
C77: 2017 | D77: 1 | E77: Bélgica | F77: RACAFE & CIA S.C.A. | G77: 583.0 | H77: 680.0 | I77: $ 129,238
C78: 2017 | D78: 1 | E78: Bélgica | F78: SOCIEDAD EXPORTADORA DE CAFE | G78: 7,391.0 | H78: 8,620.0 | I78: $ 2,387,792
C79: 2017 | D79: 1 | E79: Bélgica | F79: VILLEGAS Y CIA. SOCIEDAD EN COMANDI | G79: 2,458.0 | H79: 2,869.0 | I79: $ 450,000
C80: 2017 | D80: 1 | E80: Canadá | F80: A LAUMAYER Y COMPAÑIA EXPORTADORES | G80: 1,921.0 | H80: 2,239.0 | I80: $ 493,163
C81: 2017 | D81: 1 | E81: Canadá | F81: ALEXCAFE SAS | G81: 276.0 | H81: 321.0 | I81: $ 50,000
C82: 2017 | D82: 1 | E82: Canadá | F82: AZAHAR COFFEE COMPANY S.A.S | G82: 534.0 | H82: 622.0 | I82: $ 136,506
C83: 2017 | D83: 1 | E83: Canadá | F83: BANCA EXPORTADORA S.A BANEXPORT | G83: 823.0 | H83: 960.0 | I83: $ 203,878
C84: 2017 | D84: 1 | E84: Canadá | F84: CAFE COLSUAVES S.A.S | G84: 1,648.0 | H84: 1,919.0 | I84: $ 354,750
C85: 2017 | D85: 1 | E85: Canadá | F85: CAFETRILLA EXPORTADORA LTDA | G85: 250.0 | H85: 292.0 | I85: $ 79,466
C86: 2017 | D86: 1 | E86: Canadá | F86: CARCAFE LTDA | G86: 4,652.0 | H86: 5,429.0 | I86: $ 1,112,082
C87: 2017 | D87: 1 | E87: Canadá | F87: COMPAÑIA COLOMBIANA AGROINDUSTRIAL | G87: 1,653.0 | H87: 1,926.0 | I87: $ 364,979
C88: 2017 | D88: 1 | E88: Canadá | F88: COMPAÑIA NACIONAL DEL CAFÉ S.A.S | G88: 274.0 | H88: 320.0 | I88: $ 74,063
C89: 2017 | D89: 1 | E89: Canadá | F89: COOPERATIVA DE CAFICULTORES | G89: 2,745.0 | H89: 3,203.0 | I89: $ 782,701
C90: 2017 | D90: 1 | E90: Canadá | F90: COOPERATIVA DE CAFICULTORES DE ANDE | G90: 275.0 | H90: 321.0 | I90: $ 50,000
C91: 2017 | D91: 1 | E91: Canadá | F91: COOPERATIVA DEPARTAMENTAL DE | G91: 526.0 | H91: 614.0 | I91: $ 107,305
C92: 2017 | D92: 1 | E92: Canadá | F92: EMPRESA COFFEELAND S.A.S | G92: 103.0 | H92: 119.0 | I92: $ 32,895
C93: 2017 | D93: 1 | E93: Canadá | F93: ENGELHART CTP (COLOMBIA ) S.A.S. | G93: 824.0 | H93: 962.0 | I93: $ 150,064
C94: 2017 | D94: 1 | E94: Canadá | F94: FEDERACION NACIONAL DE CAFETEROS | G94: 4,388.0 | H94: 5,120.0 | I94: $ 1,211,759
C95: 2017 | D95: 1 | E95: Canadá | F95: OLAM AGRO COLOMBIA S.A.S | G95: 3,576.0 | H95: 4,169.0 | I95: $ 910,000
C96: 2017 | D96: 1 | E96: Canadá | F96: RACAFE & CIA S.C.A. | G96: 275.0 | H96: 321.0 | I96: $ 90,484
C97: 2017 | D97: 1 | E97: Canadá | F97: SELECTO EXPORTADORES S.A.S. | G97: 275.0 | H97: 321.0 | I97: $ 87,313
C98: 2017 | D98: 1 | E98: Canadá | F98: SKN CARIBECAFE LTDA | G98: 4,937.0 | H98: 5,760.0 | I98: $ 1,396,943
C99: 2017 | D99: 1 | E99: Canadá | F99: SOCIEDAD EXPORTADORA DE CAFE | G99: 13,592.0 | H99: 15,860.0 | I99: $ 3,351,484
C100: 2017 | D100: 1 | E100: Canadá | F100: VILLEGAS Y CIA. SOCIEDAD EN COMANDI | G100: 549.0 | H100: 640.0 | I100: $ 100,000
C101: 2017 | D101: 1 | E101: Chile | F101: AGROPECUARIA FARALLONES S.A. | G101: 30.0 | H101: 34.0 | I101: $ 11,266
C102: 2017 | D102: 1 | E102: Chile | F102: DESCAFEINADORA COLOMBIANA S.A.S | G102: 9.0 | H102: 11.0 | I102: $ 2,612
C103: 2017 | D103: 1 | E103: Chile | F103: FEDERACION NACIONAL DE CAFETEROS | G103: 459.0 | H103: 535.0 | I103: $ 226,123
C104: 2017 | D104: 1 | E104: Chile | F104: NESTLE DE COLOMBIA S.A. | G104: 62.0 | H104: 72.0 | I104: $ 28,080
C105: 2017 | D105: 1 | E105: Chile | F105: PROMOTORA DE CAFE COLOMBIA S.A. | G105: 312.0 | H105: 365.0 | I105: $ 290,397
C106: 2017 | D106: 1 | E106: Chile | F106: SUPER COFFEE S.A.S | G106: 16.0 | H106: 18.0 | I106: $ 6,930
C107: 2017 | D107: 1 | E107: China | F107: AMIGOS A M G LTDA | G107: 7.0 | H107: 8.0 | I107: $ 1,893
C108: 2017 | D108: 1 | E108: China | F108: COFCO COLOMBIA S.A.S | G108: 550.0 | H108: 642.0 | I108: $ 95,000
C109: 2017 | D109: 1 | E109: China | F109: COMPAÑIA COLOMBIANA AGROINDUSTRIAL | G109: 224.0 | H109: 262.0 | I109: $ 53,693
C110: 2017 | D110: 1 | E110: China | F110: ENGELHART CTP (COLOMBIA ) S.A.S. | G110: 274.0 | H110: 319.0 | I110: $ 55,000
C111: 2017 | D111: 1 | E111: China | F111: EXPORTADORA DE CAFE CONDOR S.A.S | G111: 50.0 | H111: 58.0 | I111: $ 11,851
C112: 2017 | D112: 1 | E112: China | F112: FEDERACION NACIONAL DE CAFETEROS | G112: 826.0 | H112: 963.0 | I112: $ 215,807
C113: 2017 | D113: 1 | E113: China | F113: INDUSTRIAS ALIADAS S.A.S | G113: 236.0 | H113: 276.0 | I113: $ 119,568
C114: 2017 | D114: 1 | E114: China | F114: OLAM AGRO COLOMBIA S.A.S | G114: 275.0 | H114: 320.0 | I114: $ 59,125
C115: 2017 | D115: 1 | E115: China | F115: SKN CARIBECAFE LTDA | G115: 275.0 | H115: 320.0 | I115: $ 76,019
C116: 2017 | D116: 1 | E116: China | F116: WALKER ESCOBAR MAURICIO | G116: 5.0 | H116: 6.0 | I116: $ 3,621
C117: 2017 | D117: 1 | E117: Colombia | F117: FEDERACION NACIONAL DE CAFETEROS | G117: 233.0 | H117: 273.0 | I117: $ 130,372
C118: 2017 | D118: 1 | E118: Corea del Sur | F118: AGROPECUARIA ORGÁNICA TATAMÁ SAS | G118: 245.0 | H118: 285.0 | I118: $ 50,000
C119: 2017 | D119: 1 | E119: Corea del Sur | F119: ALEXCAFE SAS | G119: 1,749.0 | H119: 2,040.0 | I119: $ 510,000
C120: 2017 | D120: 1 | E120: Corea del Sur | F120: ALTAMIRA SUPREMO S.A.S. | G120: 275.0 | H120: 320.0 | I120: $ 50,000
C121: 2017 | D121: 1 | E121: Corea del Sur | F121: CAFE COLSUAVES S.A.S | G121: 2,880.0 | H121: 3,360.0 | I121: $ 619,200
C122: 2017 | D122: 1 | E122: Corea del Sur | F122: CARCAFE LTDA | G122: 2,723.0 | H122: 3,178.0 | I122: $ 618,432
C123: 2017 | D123: 1 | E123: Corea del Sur | F123: COFCO COLOMBIA S.A.S | G123: 549.0 | H123: 641.0 | I123: $ 119,599
C124: 2017 | D124: 1 | E124: Corea del Sur | F124: COMPAÑÍA CAFETERA LA MESETA S.A. | G124: 275.0 | H124: 320.0 | I124: $ 70,538
C125: 2017 | D125: 1 | E125: Corea del Sur | F125: COMPAÑIA COLOMBIANA AGROINDUSTRIAL | G125: 551.0 | H125: 642.0 | I125: $ 146,991
C126: 2017 | D126: 1 | E126: Corea del Sur | F126: COMPAÑIA NACIONAL DEL CAFÉ S.A.S | G126: 551.0 | H126: 643.0 | I126: $ 148,712
C127: 2017 | D127: 1 | E127: Corea del Sur | F127: COOPERATIVA DE CAFICULTORES | G127: 1,647.0 | H127: 1,921.0 | I127: $ 300,000
C128: 2017 | D128: 1 | E128: Corea del Sur | F128: COOPERATIVA DE CAFICULTORES DE ANDE | G128: 549.0 | H128: 640.0 | I128: $ 100,000
C129: 2017 | D129: 1 | E129: Corea del Sur | F129: ENGELHART CTP (COLOMBIA ) S.A.S. | G129: 823.0 | H129: 959.0 | I129: $ 21,000
C130: 2017 | D130: 1 | E130: Corea del Sur | F130: EXPORTADORA DE CAFE ISABELITA SAS | G130: 251.0 | H130: 292.0 | I130: $ 79,257
C131: 2017 | D131: 1 | E131: Corea del Sur | F131: FEDERACION NACIONAL DE CAFETEROS | G131: 3,695.0 | H131: 4,313.0 | I131: $ 991,877
C132: 2017 | D132: 1 | E132: Corea del Sur | F132: INCONEXUS S.A.S | G132: 244.0 | H132: 285.0 | I132: $ 50,000
C133: 2017 | D133: 1 | E133: Corea del Sur | F133: INDUSTRIA COLOMBIANA DE CAFÉ S.A.S. | G133: 801.0 | H133: 936.0 | I133: $ 220,500
C134: 2017 | D134: 1 | E134: Corea del Sur | F134: LOLO COFFEE GROUP & CIA SCA | G134: 276.0 | H134: 322.0 | I134: $ 70,000
C135: 2017 | D135: 1 | E135: Corea del Sur | F135: LOUIS DREYFUS COMPANY COLOMBIA | G135: 551.0 | H135: 643.0 | I135: $ 100,000
C136: 2017 | D136: 1 | E136: Corea del Sur | F136: OLAM AGRO COLOMBIA S.A.S | G136: 1,350.0 | H136: 1,573.0 | I136: $ 290,250
C137: 2017 | D137: 1 | E137: Corea del Sur | F137: RACAFE & CIA S.C.A. | G137: 5,282.0 | H137: 6,161.0 | I137: $ 1,435,131
C138: 2017 | D138: 1 | E138: Corea del Sur | F138: RAFAEL ESPINOSA HERMANOS & CIA SCA | G138: 825.0 | H138: 962.0 | I138: $ 226,686
C139: 2017 | D139: 1 | E139: Corea del Sur | F139: SOCIEDAD EXPORTADORA DE CAFE | G139: 549.0 | H139: 641.0 | I139: $ 140,000
C140: 2017 | D140: 1 | E140: Corea del Sur | F140: VIAS Y CAMINOS S.A. | G140: 251.0 | H140: 293.0 | I140: $ 70,000
C141: 2017 | D141: 1 | E141: Costa Rica | F141: INDUSTRIA COLOMBIANA DE CAFÉ S.A.S. | G141: 135.0 | H141: 159.0 | I141: $ 34,989
C142: 2017 | D142: 1 | E142: Dinamarca | F142: FEDERACION NACIONAL DE CAFETEROS | G142: 111.0 | H142: 130.0 | I142: $ 49,720
C143: 2017 | D143: 1 | E143: Dinamarca | F143: OLAM AGRO COLOMBIA S.A.S | G143: 2,097.0 | H143: 2,444.0 | I143: $ 490,000
C144: 2017 | D144: 1 | E144: Dinamarca | F144: SOCIEDAD EXPORTADORA DE CAFE | G144: 899.0 | H144: 1,048.0 | I144: $ 227,779
C145: 2017 | D145: 1 | E145: Dinamarca | F145: VILLEGAS Y CIA. SOCIEDAD EN COMANDI | G145: 275.0 | H145: 321.0 | I145: $ 50,000
C146: 2017 | D146: 1 | E146: E.A.U. | F146: ALTAMIRA SUPREMO S.A.S. | G146: 276.0 | H146: 322.0 | I146: $ 50,000
C147: 2017 | D147: 1 | E147: E.A.U. | F147: C.I INVERSIONES PERCOL E.U | G147: 10.0 | H147: 12.0 | I147: $ 5,894
C148: 2017 | D148: 1 | E148: E.A.U. | F148: COMPAÑÍA CAFETERA LA MESETA S.A. | G148: 275.0 | H148: 321.0 | I148: $ 87,046
C149: 2017 | D149: 1 | E149: E.A.U. | F149: SUCAFE S.A.S | G149: 550.0 | H149: 641.0 | I149: $ 118,250
C150: 2017 | D150: 1 | E150: Ecuador | F150: COFFEE CONNECTIONS S.A.S. | G150: 4.0 | H150: 4.0 | I150: $ 3,285
C151: 2017 | D151: 1 | E151: Ecuador | F151: FEDERACION NACIONAL DE CAFETEROS | G151: 25.0 | H151: 29.0 | I151: $ 14,571
C152: 2017 | D152: 1 | E152: Ecuador | F152: INDUSTRIA COLOMBIANA DE CAFÉ S.A.S. | G152: 808.0 | H152: 945.0 | I152: $ 402,749
C153: 2017 | D153: 1 | E153: Ecuador | F153: INDUSTRIAS ALIADAS S.A.S | G153: 245.0 | H153: 286.0 | I153: $ 42,952
C154: 2017 | D154: 1 | E154: Ecuador | F154: PROMOTORA DE CAFE COLOMBIA S.A. | G154: 86.0 | H154: 100.0 | I154: $ 61,854
C155: 2017 | D155: 1 | E155: EE.UU. | F155: A LAUMAYER Y COMPAÑIA EXPORTADORES | G155: 14,682.0 | H155: 17,132.0 | I155: $ 3,717,276
C156: 2017 | D156: 1 | E156: EE.UU. | F156: AGROPECUARIA ORGÁNICA TATAMÁ SAS | G156: 274.0 | H156: 320.0 | I156: $ 70,256
C157: 2017 | D157: 1 | E157: EE.UU. | F157: ALEXCAFE SAS | G157: 8,520.0 | H157: 9,945.0 | I157: $ 2,211,000
C158: 2017 | D158: 1 | E158: EE.UU. | F158: ALTAMIRA SUPREMO S.A.S. | G158: 1,349.0 | H158: 1,575.0 | I158: $ 250,000
C159: 2017 | D159: 1 | E159: EE.UU. | F159: AZAHAR COFFEE COMPANY S.A.S | G159: 262.0 | H159: 305.0 | I159: $ 66,876
C160: 2017 | D160: 1 | E160: EE.UU. | F160: BANCA EXPORTADORA S.A BANEXPORT | G160: 2,449.0 | H160: 2,858.0 | I160: $ 650,573
C161: 2017 | D161: 1 | E161: EE.UU. | F161: C. I. KYOTO LOHAS BEANS S.A.S | G161: 1,376.0 | H161: 1,605.0 | I161: $ 407,969
C162: 2017 | D162: 1 | E162: EE.UU. | F162: C.I HALOVI S.A | G162: 8.0 | H162: 9.0 | I162: $ 5,813
C163: 2017 | D163: 1 | E163: EE.UU. | F163: CAFE COLSUAVES S.A.S | G163: 823.0 | H163: 961.0 | I163: $ 177,375
C164: 2017 | D164: 1 | E164: EE.UU. | F164: CAFE DE SANTA BARBARA S.A.S. | G164: 1,293.0 | H164: 1,512.0 | I164: $ 450,058
C165: 2017 | D165: 1 | E165: EE.UU. | F165: CAFE DEVOTION S.A.S | G165: 87.0 | H165: 98.0 | I165: $ 65,901
C166: 2017 | D166: 1 | E166: EE.UU. | F166: CAFE LA MORELIA S.A.S. | G166: 15.0 | H166: 19.0 | I166: $ 4,718
C167: 2017 | D167: 1 | E167: EE.UU. | F167: CAFETRILLA EXPORTADORA LTDA | G167: 550.0 | H167: 642.0 | I167: $ 139,549
C168: 2017 | D168: 1 | E168: EE.UU. | F168: CARAVELA COLOMBIA S.A.S | G168: 1,487.0 | H168: 1,732.0 | I168: $ 368,160
C169: 2017 | D169: 1 | E169: EE.UU. | F169: CARCAFE LTDA | G169: 46,132.0 | H169: 53,819.0 | I169: $ 11,622,886
C170: 2017 | D170: 1 | E170: EE.UU. | F170: COBIA GLOBAL COMMERCE SAS | G170: 247.0 | H170: 287.0 | I170: $ 85,244
C171: 2017 | D171: 1 | E171: EE.UU. | F171: COFCO COLOMBIA S.A.S | G171: 13,191.0 | H171: 15,388.0 | I171: $ 2,138,888
C172: 2017 | D172: 1 | E172: EE.UU. | F172: COFFEE CONNECTIONS S.A.S. | G172: 0.0 | H172: 0.0 | I172: $ 232
C173: 2017 | D173: 1 | E173: EE.UU. | F173: COMPAÑÍA CAFETERA LA MESETA S.A. | G173: 23,255.0 | H173: 27,130.0 | I173: $ 5,741,812
C174: 2017 | D174: 1 | E174: EE.UU. | F174: COMPAÑIA COLOMBIANA AGROINDUSTRIAL | G174: 35,179.0 | H174: 41,050.0 | I174: $ 8,863,037
C175: 2017 | D175: 1 | E175: EE.UU. | F175: COMPAÑIA NACIONAL DEL CAFÉ S.A.S | G175: 3,204.0 | H175: 3,737.0 | I175: $ 810,549
C176: 2017 | D176: 1 | E176: EE.UU. | F176: COOPERATIVA CAFE ORIGEN HUILACOOP | G176: 8.0 | H176: 9.0 | I176: $ 1,501
C177: 2017 | D177: 1 | E177: EE.UU. | F177: COOPERATIVA CENTRAL DE CAFICULTORES | G177: 4,016.0 | H177: 4,687.0 | I177: $ 970,341
C178: 2017 | D178: 1 | E178: EE.UU. | F178: COOPERATIVA DE CAFICULTORES | G178: 9,839.0 | H178: 11,477.0 | I178: $ 2,724,968
C179: 2017 | D179: 1 | E179: EE.UU. | F179: COOPERATIVA DE CAFICULTORES DE ANDE | G179: 4,395.0 | H179: 5,126.0 | I179: $ 1,297,664
C180: 2017 | D180: 1 | E180: EE.UU. | F180: COOPERATIVA DEPARTAMENTAL CAFETERA | G180: 4.0 | H180: 4.0 | I180: $ 2,352
C181: 2017 | D181: 1 | E181: EE.UU. | F181: COOPERATIVA DEPARTAMENTAL DE | G181: 13,764.0 | H181: 16,055.0 | I181: $ 2,948,220
C182: 2017 | D182: 1 | E182: EE.UU. | F182: DESCAFEINADORA COLOMBIANA S.A.S | G182: 1,199.0 | H182: 1,398.0 | I182: $ 196,513
C183: 2017 | D183: 1 | E183: EE.UU. | F183: ENGELHART CTP (COLOMBIA ) S.A.S. | G183: 24,946.0 | H183: 29,104.0 | I183: $ 5,053,499
C184: 2017 | D184: 1 | E184: EE.UU. | F184: EXPOCOSURCA S.A. C.I. | G184: 535.0 | H184: 626.0 | I184: $ 115,025
C185: 2017 | D185: 1 | E185: EE.UU. | F185: EXPORTADORA DE CAFE CONDOR S.A.S | G185: 790.0 | H185: 924.0 | I185: $ 286,022
C186: 2017 | D186: 1 | E186: EE.UU. | F186: EXPORTADORA DE CAFE ISABELITA SAS | G186: 550.0 | H186: 642.0 | I186: $ 168,518
C187: 2017 | D187: 1 | E187: EE.UU. | F187: FEDERACION NACIONAL DE CAFETEROS | G187: 22,740.0 | H187: 26,520.0 | I187: $ 6,235,571
C188: 2017 | D188: 1 | E188: EE.UU. | F188: GOMEZ MORA S.A. | G188: 824.0 | H188: 961.0 | I188: $ 198,651
C189: 2017 | D189: 1 | E189: EE.UU. | F189: INCONEXUS S.A.S | G189: 248.0 | H189: 289.0 | I189: $ 70,000
C190: 2017 | D190: 1 | E190: EE.UU. | F190: INDUSTRIA COLOMBIANA DE CAFÉ S.A.S. | G190: 4,424.0 | H190: 5,166.0 | I190: $ 2,780,608
C191: 2017 | D191: 1 | E191: EE.UU. | F191: INDUSTRIAS ALIADAS S.A.S | G191: 5,105.0 | H191: 5,959.0 | I191: $ 2,373,228
C192: 2017 | D192: 1 | E192: EE.UU. | F192: INTEGRA TRADING SAS | G192: 1,375.0 | H192: 1,605.0 | I192: $ 343,195
C193: 2017 | D193: 1 | E193: EE.UU. | F193: INVERCAFE CERRITOS S. A. S. | G193: 275.0 | H193: 321.0 | I193: $ 87,491
C194: 2017 | D194: 1 | E194: EE.UU. | F194: INVERSIONES GOMEZ JOVES Y CIA S.C.A | G194: 276.0 | H194: 322.0 | I194: $ 50,000
C195: 2017 | D195: 1 | E195: EE.UU. | F195: IXTAPA S.A.S. | G195: 1,374.0 | H195: 1,603.0 | I195: $ 250,000
C196: 2017 | D196: 1 | E196: EE.UU. | F196: LOLO COFFEE GROUP & CIA SCA | G196: 552.0 | H196: 644.0 | I196: $ 141,464
C197: 2017 | D197: 1 | E197: EE.UU. | F197: LOUIS DREYFUS COMPANY COLOMBIA | G197: 38,132.0 | H197: 44,486.0 | I197: $ 7,241,992
C198: 2017 | D198: 1 | E198: EE.UU. | F198: LOUIS DREYFUS COMPANY COLOMBIA S.A. | G198: 7,698.0 | H198: 8,979.0 | I198: $ 1,350,000
C199: 2017 | D199: 1 | E199: EE.UU. | F199: MILD COFFEE COMPANY HUILA S.A.S C.I | G199: 550.0 | H199: 641.0 | I199: $ 120,000
C200: 2017 | D200: 1 | E200: EE.UU. | F200: OLAM AGRO COLOMBIA S.A.S | G200: 23,471.0 | H200: 27,380.0 | I200: $ 5,377,870
C201: 2017 | D201: 1 | E201: EE.UU. | F201: ORO MOLIDO S.A. | G201: 830.0 | H201: 970.0 | I201: $ 219,985
C202: 2017 | D202: 1 | E202: EE.UU. | F202: PROMOTORA CAFE DE ATURA SAS | G202: 275.0 | H202: 320.0 | I202: $ 106,095
... 4298 more rows
